{"text_format":"1","workbook":"xlsx","n_sheets":23,"sheets":["MainPage","Sheet1","codebook","language","msgContent","setting","listInfor","deleteRecord","tempVisit","tempVisit1","tempCLS","tempReferal","tempTreatment","tempEvent","tempPatient","tempReport","visit","cls","treatment","referal","patient","eventList","Sample"],"not_rendered":{"charts":0,"images":10,"macros":1,"external_links":0,"defined_names":14,"comments":0,"pivot_tables":0},"unopened":[],"bounds":{"document_bytes":16777216,"sheet_cells":100000,"rows_first":2000,"rows_last":500,"rows_between":2000,"halvings":0,"cell_chars":16384,"cell_head_chars":4096},"cells_cut":0,"cells_raw":0,"read":"whole","date_system":"1900"}

{"sheet":"MainPage","index":0,"n_rows":0,"n_cols":0,"rows_kept":0,"cut":false,"hidden":false,"merged":[]}

{"sheet":"Sheet1","index":1,"n_rows":11,"n_cols":7,"rows_kept":11,"cut":false,"hidden":true,"merged":[]}
["2012-10-01"]
["Sunday","Monday","Tuesday","Wednesday","Thursday","Friday","Saturday"]
[null,1,2,3,4,5,6]
[]
[7,8,9,10,11,12,13]
[]
[14,15,16,17,18,19,20]
[]
[21,22,23,24,25,26,27]
[]
[28,29,30,31]

{"sheet":"codebook","index":2,"n_rows":77,"n_cols":6,"rows_kept":77,"cut":false,"hidden":false,"merged":[]}
[null,null,"value","eng","vie","control"]
[null,null,1,"LymphoT-CD4","Tế bào LymphoT-CD4","OP000021"]
[null,null,2,"Viral load","Tải lượng virus","OP000022"]
[null,null,3,"Blood counts: Hemoglobin","Công thức máu: Hemoglobin","OP000023"]
[null,null,4,"Liver functions: ALT","Chức năng gan: ALT","OP000024"]
[null,null,5,"Liver functions: AST","Chức năng gan: AST","OP000025"]
[null,null,6,"Biochemical: Glucose","Sinh hóa: Glucose","OP000026"]
[null,null,7,"Biochemical: Creatinine","Sinh hóa: Creatinine","OP000027"]
[null,null,8,"Biochemical: Cholesterol","Sinh hóa: Cholesterol","OP000028"]
[null,null,9,"Biochemical: Triglicerid","Sinh hóa: Triglicerid","OP000029"]
[null,null,10,"BK Phlegm","BK đờm","OP000030"]
[null,null,11,"Gene Xpert","Gen Xpert","OP000031"]
[null,null,12,"Other","Khác","OP000032"]
[null,null,13,"Lung X-Ray","X-Quang Phổi","OP000064"]
[null,null,1,"Negative","Âm tính","OP000033"]
[null,null,2,"Positive","Dương tính","OP000034"]
[null,null,3,"Unidentified","Không xác định","OP000035"]
[null,null,1,"TB Diagnosis","Chẩn đoán Lao","OP000065"]
[null,null,2,"TB Treatment","Điều trị Lao","OP000066"]
[null,null,3,"HIV Testing","Xét nghiệm HIV","OP000067"]
[null,null,4,"PMTCT","PLTMC","OP000068"]
[null,null,5,"Other","Khác","OP000069"]
[null,null,1,"ZDV-FDC (ZDV/3TC/NVP)","ZDV-FDC (ZDV/3TC/NVP)","OP000042"]
[null,null,2,"ZDV/3TC + NVP ","ZDV/3TC + NVP ","OP000043"]
[null,null,3,"ZDV/3TC + EFV","ZDV/3TC + EFV","OP000044"]
[null,null,4,"d4T- FDC (d4T/3TC/NVP)","d4T- FDC (d4T/3TC/NVP)","OP000045"]
[null,null,5,"d4T + 3TC + EFV (viên rời)","d4T + 3TC + EFV (viên rời)","OP000046"]
[null,null,6,"TDF + 3TC + NVP (viên rời)","TDF + 3TC + NVP (viên rời)","OP000047"]
[null,null,7,"TDF/3TC/EFV (viên kết hợp)","TDF/3TC/EFV (viên kết hợp)","OP000048"]
[null,null,8,"AZT + 3TC + LPV/r","AZT + 3TC + LPV/r","OP000049"]
[null,null,9,"ABC + DDI + LPV/r","ABC + DDI + LPV/r","OP000050"]
[null,null,10,"TDF + 3TC + LPV/r","TDF + 3TC + LPV/r","OP000051"]
[null,null,11,"DDI + NVP + LPV/r","DDI + NVP + LPV/r","OP000052"]
[null,null,12,"DDI + EFV + LPV/r","DDI + EFV + LPV/r","OP000053"]
[null,null,13,"Other","Khác","OP000054"]
[null,null,1,"New drugs are available","Có thuốc mới","OP000055"]
[null,null,2,"Drugs are no longer","Hết thuốc","OP000056"]
[null,null,3,"Gestation","Mang thai","OP000057"]
[null,null,4,"TB","Lao","OP000058"]
[null,null,5,"Side effects","Tác dụng phụ","OP000059"]
[null,null,6,"Other","Khác","OP000060"]
[null,null,7,"Clinical Failure","Thất bại lâm sàng","OP000061"]
[null,null,8,"Immune failure","Thất bại miễn dịch","OP000062"]
[null,null,9,"Virological failure","Thất bại virus học","OP000063"]
[null,null,1,"ARV","ARV","OP000036"]
[null,null,2,"TB Treatment","Điều trị Lao","OP000037"]
[null,null,3,"TB Prevention (INH)","Dự phòng Lao (INH)","OP000038"]
[null,null,4,"Cotrimoxazole","Cotrimoxazole","OP000039"]
[null,null,5,"PMTCT","PLTMC","OP000040"]
[null,null,6,"Other","Khác","OP000041"]
[null,null,1,"Timely","Đúng hẹn","OP000011"]
[null,null,2,"Early/Sudden","Sớm/Đột xuất","OP000012"]
[null,null,3,"Late","Muộn","OP000013"]
[null,null,1,"Good","Tốt","OP000070"]
[null,null,2,"Medium","Trung bình","OP000071"]
[null,null,3,"Poor","Kém","OP000072"]
[null,null,1,"Be able to walk","Đi lại được","OP000018"]
[null,null,2,"Be able to work","Làm việc được","OP000019"]
[null,null,3,"Bedridden","Nằm tại giường","OP000020"]
[null,null,1,"Khách hàng tự đến","Khách hàng tự đến","OP000073"]
[null,null,2,"Tranfer-In from other OPC","Chuyển gửi từ PKNT khác","OP000074"]
[null,null,3,"Cơ sở TVXN HIV","Cơ sở TVXN HIV","OP000075"]
[null,null,4,"Bệnh viện/phòng khám công","Bệnh viện/phòng khám công","OP000076"]
[null,null,5,"Đồng đẳng viên","Đồng đẳng viên","OP000077"]
[null,null,6,"Khác","Khác","OP000078"]
[null,null,0,"Male","Nam"]
[null,null,1,"Female","Nữ"]
[null,null,1,"Điều trị lại","Điều trị lại"]
[null,null,2,"Ngừng thuốc do: Tác dụng phụ","Ngừng thuốc do: Tác dụng phụ"]
[null,null,3,"Ngừng thuốc do: Có thai","Ngừng thuốc do: Có thai"]
[null,null,4,"Ngừng thuốc do: Thất bại điều trị","Ngừng thuốc do: Thất bại điều trị"]
[null,null,5,"Ngừng thuốc do: Tuân thủ kém","Ngừng thuốc do: Tuân thủ kém"]
[null,null,6,"Ngừng thuốc do: Bệnh nặng, nằm viện","Ngừng thuốc do: Bệnh nặng, nằm viện"]
[null,null,7,"Ngừng thuốc do: Hết thuốc","Ngừng thuốc do: Hết thuốc"]
[null,null,8,"Ngừng thuốc do: Không có khả năng chi trả","Ngừng thuốc do: Không có khả năng chi trả"]
[null,null,9,"Ngừng thuốc do: Quyết định khác của bệnh nhân","Ngừng thuốc do: Quyết định khác của bệnh nhân"]
[null,null,10,"Ngừng thuốc do:  Các lý do khác","Ngừng thuốc do:  Các lý do khác"]

{"sheet":"language","index":3,"n_rows":348,"n_cols":6,"rows_kept":348,"cut":false,"hidden":false,"merged":[]}
["formID/sheetName","controlID","controlType","textEng","textVie","Note"]
["frmManageDailyVisit","BT000001","CommandButton"," Search"," Tìm","Nút tìm kiếm khách hàng"]
["frmSetting","BT000002","CommandButton",null,null,"Nút chọn thư mục backup"]
["frmSetting","BT000003","CommandButton"," Save"," Lưu","Nút lưu cấu hình"]
["frmManageDailyVisit","BT000004","CommandButton",null,null,"Nút lấy ngày đến khám"]
["frmManageDailyVisit","BT000005","CommandButton",null,null,"Nút lấy ngày hẹn tái khám"]
["frmManageDailyVisit","BT000006","CommandButton"," Add New Client","Khách hàng mới","Nút lấy ngày hẹn tái khám"]
["frmManageDailyVisit","BT000007","CommandButton"," Save to Database"," Lưu vào CSDL","Nút lấy ngày hẹn tái khám"]
["frmManageDailyVisit","BT000008","CommandButton",null,null,"Nút lấy Ngày xác định"]
["frmManageDailyVisit","BT000009","CommandButton",null,null,"Nút lấy Ngày Dự kiến sinh"]
["frmManageDailyVisit","BT000010","CommandButton",null,null,"Nút lấy Ngày xét nghiệm"]
["frmManageDailyVisit","BT000011","CommandButton",null,null,"Nút lấy Ngày xét nghiệm lại"]
["frmManageDailyVisit","BT000012","CommandButton"," Edit"," Sửa","Nút Sửa xét nghiệm"]
["frmManageDailyVisit","BT000013","CommandButton"," Add New"," Thêm mới","Nút Thêm xét nghiệm"]
["frmManageDailyVisit","BT000014","CommandButton",null,null,"Nút lấy ngày hẹn (đến ngày) tìm kiếm"]
["frmManageDailyVisit","BT000015","CommandButton",null,null,"Nút lấy Ngày bắt đầu điều trị"]
["frmManageDailyVisit","BT000016","CommandButton",null,null,"Nút lấy Ngày kết thúc điều trị"]
["frmManageDailyVisit","BT000017","CommandButton"," Delete"," Xóa","Nút xóa xét nghiêm"]
["frmManageDailyVisit","BT000018","CommandButton"," Delete"," Xóa","Nút xóa điều trị"]
["frmManageDailyVisit","BT000019","CommandButton"," Edit"," Sửa","Nút sửa điều trị"]
["frmManageDailyVisit","BT000020","CommandButton"," Add New"," Thêm mới","Nút thêm điều trị"]
["frmManageDailyVisit","BT000021","CommandButton"," Delete"," Xóa","Nút xóa chuyển gửi"]
["frmManageDailyVisit","BT000022","CommandButton"," Edit"," Sửa","Nút sửa chuyển gửi"]
["frmManageDailyVisit","BT000023","CommandButton"," Add New"," Thêm mới","Nút thêm chuyển gửi"]
["frmManageDailyVisit","BT000024","CommandButton",null,null,"Nút lấy ngày chuyển gửi"]
["frmManageDailyVisit","BT000025","CommandButton",null,null,"Nút lấy ngày nhận dịch vụ"]
["frmManageDailyVisit","BT000026","CommandButton",null,null,"Nút lấy ngày hẹn (đến ngày) tìm kiếm"]
["frmNewPatient","BT000027","CommandButton",null,null,"Ngày khẳng định HIV"]
["frmNewPatient","BT000028","CommandButton",null,null,"Ngày đăng ký chăm sóc"]
["frmNewPatient","BT000029","CommandButton",null,null,"Ngày đủ tiêu chuẩn LS, XN"]
["frmNewPatient","BT000030","CommandButton",null,null,"Ngày sẵn sàng T.T.Đ.Trị"]
["frmNewPatient","BT000031","CommandButton",null,null,"Ngày được xét chọn"]
["frmNewPatient","BT000032","CommandButton",null,null,"Ngày bắt đầu điều trị ARV"]
["frmNewPatient","BT000033","CommandButton",null,null,"Ngày bắt đầu nhận thuốc"]
[null,"BT000034","CommandButton",null,null,"Ngày mất dấu"]
[null,"BT000035","CommandButton",null,null,"Ngày tử vong"]
["frmSetting","CB000001","ComboBox",null,null,"Tỉnh/thành phố"]
["frmSetting","CB000002","ComboBox",null,null,"Tên OPC"]
["frmSetting","CB000003","ComboBox",null,null,"Quận huyện"]
["frmManageDailyVisit","CB000004","ComboBox",null,null,"Nơi chuyển gửi"]
["frmManageDailyVisit","CB000005","ComboBox",null,null,"Tỉnh/thành phố chuyển gửi"]
["frmNewPatient","CB000007","ComboBox",null,null,"Tỉnh/thành phố chuyển gửi"]
["frmNewPatient","CB000008","ComboBox",null,null,"Tỉnh/thành phố địa chỉ khách hàng"]
["frmNewPatient","CB000009","ComboBox",null,null,"Quận/huyện địa chỉ khách hàng"]
["frmNewPatient","CB000010","ComboBox",null,null,"Tỉnh/thành phố địa chỉ người thân"]
["frmNewPatient","CB000011","ComboBox",null,null,"Quận/huyện địa chỉ người thân"]
["frmNewPatient","CB000012","ComboBox",null,null,"Giới tính"]
["frmManageDailyVisit","CK000001","CheckBox","Most recent CD4 < CD4 at starting treatment","CD4 hiện tại < CD4 lúc bắt đầu điều trị"]
["frmManageDailyVisit","CK000002","CheckBox","Most recent CD4 < 1/2 Highest CD4","CD4 hiện tại < 1/2 CD4 cao nhất"]
["frmManageDailyVisit","CK000003","CheckBox","Most recent CD4 < 100 after 01 year treatment","CD4 hiện tại <100 sau 01 năm điều trị"]
["frmManageDailyVisit","CK000004","CheckBox","Client registed at OPC and received ARV at commune HC","Theo dõi điều trị tại PKNT và nhận thuốc tại xã"]
["frmManageDailyVisit","CK000005","CheckBox","Are pregnant?","Đang mang thai?"]
["frmSetting","CK000006","CheckBox","Automatic create backup file before close application","Tự động tạo bản sao lưu trước khi đóng ứng dụng"]
["frmManageDailyVisit","CK000007","CheckBox","Rash","Nổi mẩn"]
["frmManageDailyVisit","CK000008","CheckBox","Jaundice","Vàng da"]
["frmManageDailyVisit","CK000009","CheckBox","Nausea","Nôn, buồn nôn"]
["frmManageDailyVisit","CK000010","CheckBox","Diarrheal","Tiêu chảy"]
["frmManageDailyVisit","CK000011","CheckBox","Drug poisoning","Ngộ độc thuốc"]
["frmManageDailyVisit","CK000012","CheckBox","TB progression","Mắc lao tiến triển"]
["frmManageDailyVisit","CK000013","CheckBox","Used referal service","Đến nhận dịch vụ"]
["frmManageDailyVisit","CK000014","CheckBox","TB Screening","Sàng lọc Lao"]
["frmManageDailyVisit","CK000015","CheckBox","Collywobbles","Đau bụng"]
["frmManageDailyVisit","CK000016","CheckBox","Headache","Đau đầu"]
["frmManageDailyVisit","CK000017","CheckBox","Paralysis","Nóng rát/Tê cứng"]
["frmManageDailyVisit","CK000018","CheckBox","Anemia","Thiếu máu"]
["frmManageDailyVisit","CK000019","CheckBox","Disorder lipodystrophy","Thay đổi phân bố mỡ"]
["frmManageDailyVisit","CK000020","CheckBox","Dizziness, anxiety, nightmare","Hoa mắt, lo lắng, ác mộng"]
["frmManageDailyVisit","CK000021","CheckBox","Depression","Trầm cảm"]
["frmNewPatient","CK000022","CheckBox","Automatic assign ID","Tự động gán mã số"]
["frmSetting","FR000001","Frame","Site Information","Thông tin dự án"]
["frmSetting","FR000002","Frame","Language","Ngôn ngữ"]
["frmSetting","FR000003","Frame","Automatic Backup Folder","Thư mục sao lưu tự động"]
["frmManageDailyVisit","FR000004","Frame","CD4 Warning","Cảnh báo CD4"]
["frmManageDailyVisit","FR000005","Frame","Kidney failure","Suy thận"]
["frmManageDailyVisit","FR000006","Frame","Malnutrition","Suy dinh dưỡng"]
["frmManageDailyVisit","FR000007","Frame","Status","Tình trạng"]
["frmManageDailyVisit","FR000008","Frame","Clinical stage","Giai đoạn lâm sàng"]
["frmManageDailyVisit","FR000009","Frame","Motion","Vận động"]
["frmManageDailyVisit","FR000010","Frame","Anthropometric indices","Chỉ số nhân trắc"]
["frmManageDailyVisit","FR000011","Frame","Female Client only","Dành cho khách hàng nữ"]
["frmManageDailyVisit","FR000012","Frame","Other features","Đặc điểm khác"]
["frmManageDailyVisit","FR000013","Frame","Note (Shift + Enter to Go to Next Line)","Ghi chú (Shift + Enter để xuống dòng mới)"]
["frmManageDailyVisit","FR000014","Frame","Testing type","Loại xét nghiệm"]
["frmManageDailyVisit","FR000015","Frame","Date","Thời gian"]
["frmManageDailyVisit","FR000016","Frame","Qualitative result","Kết quả định tính"]
["frmManageDailyVisit","FR000017","Frame","Treatment Type","Loại hình điều trị"]
["frmManageDailyVisit","FR000018","Frame","Treatment regimen (ARV Treatment only)","Phác đồ điều trị (chỉ dành cho điều trị ARV)"]
["frmManageDailyVisit","FR000019","Frame","Treatment Period","Thời gian điều trị"]
["frmManageDailyVisit","FR000021","Frame","Reasons of stop treatment (ARV treatment only)","Lý do ngừng điều trị (chỉ dành cho điều trị ARV)"]
["frmManageDailyVisit","FR000022","Frame","Quantitative result","Kết quả định lượng"]
["frmManageDailyVisit","FR000023","Frame","Referal Services","Dịch vụ chuyển gửi"]
["frmManageDailyVisit","FR000024","Frame","Referal","Chuyển gửi"]
["frmManageDailyVisit","FR000025","Frame","Using Services","Nhận dịch vụ"]
["frmManageDailyVisit","FR000026","Frame","Treatment adherence","Tuân thủ điều trị"]
["frmManageDailyVisit","FR000027","Frame","Side effects","Tác dụng phụ"]
["frmManageDailyVisit","FR000028","Frame","General Info","Thông tin chung"]
["frmManageDailyVisit","FR000029","Frame","Services","Dịch vụ"]
["frmNewPatient","FR000030","Frame",null,null,"Chi tiết nơi giới thiệu"]
["frmNewPatient","FR000031","Frame",null,null,"Nơi giới thiệu"]
["frmManageDailyVisit","frmManageDailyVisit","UserForm","FHI 360 - DAILY VISIT MANAGEMENT LOGBOOK","FHI 360 - SO THEO DOI KHAM HANG NGAY"]
["frmNewPatient","frmNewPatient","UserForm","FHI 360 - ADD NEW CLIENT","FHI 360 - THEM KHACH HANG MOI"]
["frmSetting","frmSetting","UserForm","FHI 360 - SETTING","FHI 360 - CAU HINH HE THONG"]
["frmManageDailyVisit","LB000001","Label","Client ID:","Mã số:"]
["frmSetting","LB000002","Label","Province","Tỉnh/Thành phố"]
["frmSetting","LB000003","Label","Site Name","Tên cơ sở dịch vụ"]
["frmSetting","LB000004","Label","Site Code","Mã số"]
["frmSetting","LB000005","Label","Address (Number, Street)","Địa chỉ (Số nhà, Đường phố)"]
["frmSetting","LB000006","Label","District","Quận/Huyện"]
["frmSetting","LB000007","Label","Description (Phone number, Opening Date…)","Thông tin chi tiết (Số điện thoại, ngày thành lập… )"]
["frmSetting","LB000008","Label","Language Change That Require Restart","Phải khởi động lại ứng dụng khi thay đổi ngôn ngữ"]
["frmSetting","LB000009","Label","Commune","Phường/xã"]
["frmManageDailyVisit","LB000010","Label","Client ID","Mã khách hàng"]
["frmManageDailyVisit","LB000011","Label","Examination Date","Ngày đến khám"]
["frmManageDailyVisit","LB000012","Label","Next Examination Date","Ngày hẹn tái khám"]
["frmManageDailyVisit","LB000013","Label","Reasons for miss appointment (if any)","Lý do không đến đúng hẹn (nếu có)"]
["frmManageDailyVisit","LB000014","Label","Status","Tình trạng"]
["frmManageDailyVisit","LB000015","Label","Weight (kg)","Cân nặng (kg)"]
["frmManageDailyVisit","LB000016","Label","Height (cm)","Chiều cao (cm)"]
["frmManageDailyVisit","LB000017","Label","Confirm date","Ngày xác định"]
["frmManageDailyVisit","LB000018","Label","Delivery date","Dự kiến sinh"]
["frmManageDailyVisit","LB000019","Label","DAILY VISIT MANAGEMENT LOGBOOK","SỔ THEO DÕI KHÁM HÀNG NGÀY"]
["frmManageDailyVisit","LB000020","Label","Testing Date","Ngày xét nghiệm"]
["frmManageDailyVisit","LB000021","Label","Re-Testing Date","Ngày xét nghiệm lại"]
["frmManageDailyVisit","LB000022","Label","Quantitative","Định lượng"]
["frmManageDailyVisit","LB000023","Label","Appointment date:","Ngày hẹn khám:"]
["frmManageDailyVisit","LB000024","Label","Start treatment date","Ngày bắt đầu điều trị"]
["frmManageDailyVisit","LB000025","Label","Stop treatment date","Ngày dừng điều trị"]
["frmManageDailyVisit","LB000026","Label",null,null,"Cảnh báo suy thận"]
["frmManageDailyVisit","LB000027","Label","Referal Date","Ngày giới thiệu"]
["frmManageDailyVisit","LB000028","Label","Referal service provider Type","Loại cơ sở chuyển gửi"]
["frmManageDailyVisit","LB000029","Label","Referal service provider Name","Tên cơ sở chuyển gửi"]
["frmManageDailyVisit","LB000030","Label","Province","Tỉnh/Thành phố"]
["frmManageDailyVisit","LB000031","Label","Date","Ngày nhận dịch vụ"]
["frmManageDailyVisit","LB000032","Label","Note (Shift + Enter to Go to Next Line)","Ghi chú (Shift + Enter để xuống dòng mới)"]
["frmManageDailyVisit","LB000033","Label","Client Full Name","Họ và tên khách hàng"]
["frmManageDailyVisit","LB000034","Label","Year of Birth","Năm sinh"]
["frmManageDailyVisit","LB000035","Label","Gender","Giới tính"]
["frmManageDailyVisit","LB000036","Label","National ID No.","Số CMND"]
["frmManageDailyVisit","LB000037","Label","Phone contact","Điện thoại liên hệ"]
["frmManageDailyVisit","LB000038","Label","Address","Địa chỉ thường trú"]
["frmManageDailyVisit","LB000039","Label","Commune","Xã/Phường"]
["frmManageDailyVisit","LB000040","Label","District","Quận/Huyện"]
["frmManageDailyVisit","LB000041","Label","Province","Tỉnh/Thành phố"]
["frmManageDailyVisit","LB000042","Label","Referal Place","Nơi giới thiệu"]
["frmManageDailyVisit","LB000043","Label","Name of Referal Place","Tên nơi giới thiệu"]
["frmManageDailyVisit","LB000044","Label","Province","Tỉnh thành phố"]
["frmManageDailyVisit","LB000045","Label","Referal Date","Ngày giới thiệu"]
["frmManageDailyVisit","LB000046","Label","Supporter Name","Họ tên người hỗ trợ điều trị"]
["frmManageDailyVisit","LB000047","Label","Relationship with client","Mối quan hệ với khách hàng"]
["frmManageDailyVisit","LB000048","Label","Phone contact","Điện thoại liên hệ"]
["frmManageDailyVisit","LB000049","Label","Address","Địa chỉ liên hệ"]
["frmManageDailyVisit","LB000050","Label","Commune","Xã/Phường"]
["frmManageDailyVisit","LB000051","Label","District","Quận/Huyện"]
["frmManageDailyVisit","LB000052","Label","Province","Tỉnh/Thành phố"]
["frmManageDailyVisit","LB000053","Label","Treatment adherence","Tuân thủ điều trị"]
["frmManageDailyVisit","LB000054","Label","Treatment duration","Thời gian điều trị"]
["frmManageDailyVisit","LB000055","Label","Most recent CD4","CD4 gần đây nhất"]
["frmManageDailyVisit","LB000056","Label","Highest CD4","CD4 lớn nhất"]
["frmManageDailyVisit","LB000057","Label","CD4 at starting treatment","CD4 lúc bắt đầu điều trị"]
["frmNewPatient","LB000058","Label","NEW CLIENT INFORMATION","THÔNG TIN KHÁCH HÀNG MỚI"]
["frmNewPatient","LB000059","Label","Client ID","Mã số khách hàng"]
["frmNewPatient","LB000060","Label","Confirmation date","Ngày khẳng định HIV"]
["frmNewPatient","LB000061","Label","Registration date","Ngày đăng ký chăm sóc"]
["frmNewPatient","LB000062","Label","Eligible date","Ngày đủ tiêu chuẩn"]
["frmNewPatient","LB000063","Label","Already adherence date","Ngày sẵn sàng TTĐT"]
["frmNewPatient","LB000064","Label","Be selected date","Ngày được xét chọn"]
["frmNewPatient","LB000065","Label","Starting treatment date","Ngày bắt đầu điều trị ARV"]
["frmNewPatient","LB000066","Label","First receiving date","Ngày bắt đầu nhận thuốc"]
[null,"LB000067","Label","BMI = ","BMI = "]
[null,"LB000068","Label","Creatinine = ","Creatinine = "]
[null,"LB000069","Label","GFR = ","GFR = "]
[null,"LB000070","Label","Last client ID (for tranfer-in client only)","Mã số khách hàng cũ (nếu chuyển gửi từ PKNT khác)"]
[null,"LB000071","Label","LTFU date","Ngày mất dấu"]
[null,"LB000072","Label","Death date","Ngày tử vong"]
["frmManageDailyVisit","LS000001","ListBox",null,null,"Kết quả tìm kiếm"]
["frmManageDailyVisit","LS000002","ListBox",null,null,"Danh sách xét nghiệm"]
["frmManageDailyVisit","LS000003","ListBox",null,null,"Danh sách điều trị"]
["frmManageDailyVisit","LS000004","ListBox",null,null,"Danh sách chuyển gửi"]
[null,"LS000005","ListBox",null,null,"Danh sách sự kiện 1"]
[null,"LS000006","ListBox",null,null,"Danh sách sự kiện 2"]
["frmManageDailyVisit","MP000001","MultiPage",null,null,"Các trang nội dung thăm khám"]
["frmManageDailyVisit","MP00000100","Page","Client List","Danh sách khách hàng"]
["frmManageDailyVisit","MP00000101","Page","Appointment","Lịch khám"]
["frmManageDailyVisit","MP00000102","Page","Clinical","Lâm sàng"]
["frmManageDailyVisit","MP00000103","Page","Paraclinical","Cận lâm sàng"]
["frmManageDailyVisit","MP00000104","Page","Treatment","Điều trị"]
["frmManageDailyVisit","MP00000105","Page","Referal","Chuyển gửi"]
["frmManageDailyVisit","MP00000106","Page","Administration","Hành chính"]
["frmSetting","MP000002","MultiPage",null,null,"Các trang nội dung cấu hình hệ thống"]
["frmSetting","OP000001","OptionButton","Vietnamese","Tiếng Việt"]
["frmSetting","OP000002","OptionButton","English","Tiếng Anh"]
["frmManageDailyVisit","OP000003","OptionButton",1,1,"Suy thận Độ 1"]
["frmManageDailyVisit","OP000004","OptionButton",2,2,"Suy thận Độ 2"]
["frmManageDailyVisit","OP000005","OptionButton","3a","3a","Suy thận Độ 3a"]
["frmManageDailyVisit","OP000006","OptionButton","3b","3b","Suy thận Độ 3b"]
["frmManageDailyVisit","OP000007","OptionButton",4,4,"Suy thận Độ 4"]
["frmManageDailyVisit","OP000008","OptionButton","Mild","Nhẹ"]
["frmManageDailyVisit","OP000009","OptionButton","Moderate","Vừa"]
["frmManageDailyVisit","OP000010","OptionButton","Severe","Nặng"]
["frmManageDailyVisit","OP000011","OptionButton","Timely","Đúng hẹn"]
["frmManageDailyVisit","OP000012","OptionButton","Early/Sudden","Sớm/Đột xuất"]
["frmManageDailyVisit","OP000013","OptionButton","Late","Muộn"]
["frmManageDailyVisit","OP000014","OptionButton",null,null,"Giai đoạn lâm sàng I"]
["frmManageDailyVisit","OP000015","OptionButton",null,null,"Giai đoạn lâm sàng II"]
["frmManageDailyVisit","OP000016","OptionButton",null,null,"Giai đoạn lâm sàng III"]
["frmManageDailyVisit","OP000017","OptionButton",null,null,"Giai đoạn lâm sàng IV"]
["frmManageDailyVisit","OP000018","OptionButton","Be able to walk","Đi lại được"]
["frmManageDailyVisit","OP000019","OptionButton","Be able to work","Làm việc được"]
["frmManageDailyVisit","OP000020","OptionButton","Bedridden","Nằm tại giường"]
["frmManageDailyVisit","OP000021","OptionButton","LymphoT-CD4","Tế bào LymphoT-CD4"]
["frmManageDailyVisit","OP000022","OptionButton","Viral load","Tải lượng virus"]
["frmManageDailyVisit","OP000023","OptionButton","Blood counts: Hemoglobin","Công thức máu: Hemoglobin"]
["frmManageDailyVisit","OP000024","OptionButton","Liver functions: ALT","Chức năng gan: ALT"]
["frmManageDailyVisit","OP000025","OptionButton","Liver functions: AST","Chức năng gan: AST"]
["frmManageDailyVisit","OP000026","OptionButton","Biochemical: Glucose","Sinh hóa: Glucose"]
["frmManageDailyVisit","OP000027","OptionButton","Biochemical: Creatinine","Sinh hóa: Creatinine"]
["frmManageDailyVisit","OP000028","OptionButton","Biochemical: Cholesterol","Sinh hóa: Cholesterol"]
["frmManageDailyVisit","OP000029","OptionButton","Biochemical: Triglicerid","Sinh hóa: Triglicerid"]
["frmManageDailyVisit","OP000030","OptionButton","BK Phlegm","BK đờm"]
["frmManageDailyVisit","OP000031","OptionButton","Gene Xpert","Gen Xpert"]
["frmManageDailyVisit","OP000032","OptionButton","Other","Khác"]
["frmManageDailyVisit","OP000033","OptionButton","Negative","Âm tính"]
["frmManageDailyVisit","OP000034","OptionButton","Positive","Dương tính"]
["frmManageDailyVisit","OP000035","OptionButton","Unidentified","Không xác định"]
["frmManageDailyVisit","OP000036","OptionButton","ARV","ARV"]
["frmManageDailyVisit","OP000037","OptionButton","TB Treatment","Điều trị Lao"]
["frmManageDailyVisit","OP000038","OptionButton","TB Prevention (INH)","Dự phòng Lao (INH)"]
["frmManageDailyVisit","OP000039","OptionButton","Cotrimoxazole","Cotrimoxazole"]
["frmManageDailyVisit","OP000040","OptionButton","PMTCT","PLTMC"]
["frmManageDailyVisit","OP000041","OptionButton","Other","Khác"]
["frmManageDailyVisit","OP000042","OptionButton","ZDV-FDC (ZDV/3TC/NVP)","ZDV-FDC (ZDV/3TC/NVP)"]
["frmManageDailyVisit","OP000043","OptionButton","ZDV/3TC + NVP ","ZDV/3TC + NVP "]
["frmManageDailyVisit","OP000044","OptionButton","ZDV/3TC + EFV","ZDV/3TC + EFV"]
["frmManageDailyVisit","OP000045","OptionButton","d4T- FDC (d4T/3TC/NVP)","d4T- FDC (d4T/3TC/NVP)"]
["frmManageDailyVisit","OP000046","OptionButton","d4T + 3TC + EFV (viên rời)","d4T + 3TC + EFV (viên rời)"]
["frmManageDailyVisit","OP000047","OptionButton","TDF + 3TC + NVP (viên rời)","TDF + 3TC + NVP (viên rời)"]
["frmManageDailyVisit","OP000048","OptionButton","TDF/3TC/EFV (viên kết hợp)","TDF/3TC/EFV (viên kết hợp)"]
["frmManageDailyVisit","OP000049","OptionButton","AZT + 3TC + LPV/r","AZT + 3TC + LPV/r"]
["frmManageDailyVisit","OP000050","OptionButton","ABC + DDI + LPV/r","ABC + DDI + LPV/r"]
["frmManageDailyVisit","OP000051","OptionButton","TDF + 3TC + LPV/r","TDF + 3TC + LPV/r"]
["frmManageDailyVisit","OP000052","OptionButton","DDI + NVP + LPV/r","DDI + NVP + LPV/r"]
["frmManageDailyVisit","OP000053","OptionButton","DDI + EFV + LPV/r","DDI + EFV + LPV/r"]
["frmManageDailyVisit","OP000054","OptionButton","Other","Khác"]
["frmManageDailyVisit","OP000055","OptionButton","New drugs are available","Có thuốc mới"]
["frmManageDailyVisit","OP000056","OptionButton","Drugs are no longer","Hết thuốc"]
["frmManageDailyVisit","OP000057","OptionButton","Gestation","Mang thai"]
["frmManageDailyVisit","OP000058","OptionButton","TB","Lao"]
["frmManageDailyVisit","OP000059","OptionButton","Side effects","Tác dụng phụ"]
["frmManageDailyVisit","OP000060","OptionButton","Other","Khác"]
["frmManageDailyVisit","OP000061","OptionButton","Clinical Failure","Thất bại lâm sàng"]
["frmManageDailyVisit","OP000062","OptionButton","Immune failure","Thất bại miễn dịch"]
["frmManageDailyVisit","OP000063","OptionButton","Virological failure","Thất bại virus học"]
["frmManageDailyVisit","OP000064","OptionButton","Lung X-Ray","X-Quang Phổi"]
["frmManageDailyVisit","OP000065","OptionButton","TB Diagnosis","Chẩn đoán Lao"]
["frmManageDailyVisit","OP000066","OptionButton","TB Treatment","Điều trị Lao"]
["frmManageDailyVisit","OP000067","OptionButton","HIV Testing","Xét nghiệm HIV"]
["frmManageDailyVisit","OP000068","OptionButton","PMTCT","PLTMC"]
["frmManageDailyVisit","OP000069","OptionButton","Other","Khác"]
["frmManageDailyVisit","OP000070","OptionButton","Good","Tốt"]
["frmManageDailyVisit","OP000071","OptionButton","Moderate","Trung bình"]
["frmManageDailyVisit","OP000072","OptionButton","Poor","Kém"]
["frmNewPatient","OP000073","OptionButton","By themselves","Khách hàng tự đến"]
["frmNewPatient","OP000074","OptionButton","Tranfer-In from other OPC","Chuyển gửi từ PKNT khác"]
["frmNewPatient","OP000075","OptionButton","HTC","Cơ sở TVXN HIV"]
["frmNewPatient","OP000076","OptionButton","Pulic hospital","Bệnh viện/phòng khám công"]
["frmNewPatient","OP000077","OptionButton","PE","Đồng đẳng viên"]
["frmNewPatient","OP000078","OptionButton","Other","Khác"]
["frmSetting","TT000001","Label","SYSTEM SETTING","CẤU HÌNH HỆ THỐNG"]
["frmManageDailyVisit","TX000001","TextBox",null,null,"Ô tìm kiếm khách hàng"]
["frmSetting","TX000002","TextBox",null,null,"Mã số OPC"]
["frmSetting","TX000003","TextBox",null,null,"Địa chỉ OPC"]
["frmSetting","TX000004","TextBox",null,null,"Ghi chú về OPC"]
["frmSetting","TX000005","TextBox",null,null,"Đường dẫn đến thư mục backup"]
["frmSetting","TX000006","TextBox",null,null,"Phường xã"]
["frmManageDailyVisit","TX000007","TextBox",null,null,"Mã số khách hàng"]
["frmManageDailyVisit","TX000008","TextBox",null,null,"Ngày đến khám"]
["frmManageDailyVisit","TX000009","TextBox",null,null,"Lý do đến khám đột xuất"]
["frmManageDailyVisit","TX000010","TextBox",null,null,"Ngày hẹn tái khám"]
["frmManageDailyVisit","TX000011","TextBox",null,null,"Cân nặng"]
["frmManageDailyVisit","TX000012","TextBox",null,null,"Chiều cao"]
["frmManageDailyVisit","TX000013","TextBox",null,null,"Ngày xác định"]
["frmManageDailyVisit","TX000014","TextBox",null,null,"Dự kiến sinh"]
["frmManageDailyVisit","TX000015","TextBox",null,null,"Ghi chú về đặc điểm lâm sàng"]
["frmManageDailyVisit","TX000016","TextBox",null,null,"Xét nghiệm khác, ghi rõ"]
["frmManageDailyVisit","TX000017","TextBox",null,null,"Ngày xét nghiệm"]
["frmManageDailyVisit","TX000018","TextBox",null,null,"Ngày xét nghiệm lại"]
["frmManageDailyVisit","TX000019","TextBox",null,null,"Kết quả định lượng"]
["frmManageDailyVisit","TX000021","TextBox",null,null,"Điều trị khác ghi rõ"]
["frmManageDailyVisit","TX000022","TextBox",null,null,"Phác đồ khác ghi rõ"]
["frmManageDailyVisit","TX000023","TextBox",null,null,"Ngày bắt đầu điều trị"]
["frmManageDailyVisit","TX000024","TextBox",null,null,"Ngày kết thúc điều trị"]
["frmManageDailyVisit","TX000025","TextBox",null,null,"Lý do ngừng thuốc khác"]
["frmManageDailyVisit","TX000026","TextBox",null,null,"Chuyển gửi khác ghi rõ"]
["frmManageDailyVisit","TX000027","TextBox",null,null,"Ngày chuyển gửi"]
["frmManageDailyVisit","TX000028","TextBox",null,null,"Tên nơi chuyển gửi"]
["frmManageDailyVisit","TX000029","TextBox",null,null,"Ngày nhận dịch vụ"]
["frmManageDailyVisit","TX000030","TextBox",null,null,"Ghi chú chuyển gửi"]
["frmManageDailyVisit","TX000031","TextBox",null,null,"1. Họ và tên khách hàng"]
["frmManageDailyVisit","TX000032","TextBox",null,null,"2. Năm sinh"]
["frmManageDailyVisit","TX000033","TextBox",null,null,"3. Giới tính"]
["frmManageDailyVisit","TX000034","TextBox",null,null,"4. Số CMND"]
["frmManageDailyVisit","TX000035","TextBox",null,null,"5. Điện thoại liên hệ"]
["frmManageDailyVisit","TX000036","TextBox",null,null,"6. Địa chỉ thường chú"]
["frmManageDailyVisit","TX000037","TextBox",null,null,"Xã/Phường"]
["frmManageDailyVisit","TX000038","TextBox",null,null,"Quận/Huyện"]
["frmManageDailyVisit","TX000039","TextBox",null,null,"Tỉnh/Thành phố"]
["frmManageDailyVisit","TX000040","TextBox",null,null,"7. Nơi giới thiệu"]
["frmManageDailyVisit","TX000041","TextBox",null,null,"8. Tên nơi giới thiệu"]
["frmManageDailyVisit","TX000042","TextBox",null,null,"9. Tỉnh thành phố"]
["frmManageDailyVisit","TX000043","TextBox",null,null,"10. Ngày giới thiệu"]
["frmManageDailyVisit","TX000044","TextBox",null,null,"11. Họ tên người hỗ trợ điều trị"]
["frmManageDailyVisit","TX000045","TextBox",null,null,"12. Mối quan hệ với khách hàng"]
["frmManageDailyVisit","TX000046","TextBox",null,null,"13 Điện thoại liên hệ"]
["frmManageDailyVisit","TX000047","TextBox",null,null,"14. Địa chỉ liên hệ"]
["frmManageDailyVisit","TX000048","TextBox",null,null,"Xã/Phường"]
["frmManageDailyVisit","TX000049","TextBox",null,null,"Quận/Huyện"]
["frmManageDailyVisit","TX000050","TextBox",null,null,"Tỉnh/Thành phố"]
["frmManageDailyVisit","TX000051","TextBox",null,null,"Ngày hẹn (từ ngày) tìm kiếm"]
["frmManageDailyVisit","TX000052","TextBox",null,null,"Ngày hẹn (đến ngày) tìm kiếm"]
["frmManageDailyVisit","TX000053","TextBox",null,null,"Ngày đến khám trước"]
["frmManageDailyVisit","TX000054","TextBox",null,null,"Thời gian điều trị"]
["frmManageDailyVisit","TX000055","TextBox",null,null,"CD4 gần đây nhất"]
["frmManageDailyVisit","TX000056","TextBox",null,null,"CD4 lớn nhất"]
["frmManageDailyVisit","TX000057","TextBox",null,null,"CD4 lúc bắt đầu điều trị"]
["frmNewPatient","TX000058","TextBox",null,null,"Nơi giới thiệu khác"]
["frmNewPatient","TX000059","TextBox",null,null,"Mã số khách hàng"]
["frmNewPatient","TX000060","TextBox",null,null,"Ngày khẳng định HIV"]
["frmNewPatient","TX000061","TextBox",null,null,"Ngày đăng ký chăm sóc"]
["frmNewPatient","TX000062","TextBox",null,null,"Ngày đủ tiêu chuẩn"]
["frmNewPatient","TX000063","TextBox",null,null,"Ngày sẵn sàng TTĐT"]
["frmNewPatient","TX000064","TextBox",null,null,"Ngày được xét chọn"]
["frmNewPatient","TX000065","TextBox",null,null,"Ngày bắt đầu điều trị ARV"]
["frmNewPatient","TX000066","TextBox",null,null,"Ngày bắt đầu nhận thuốc"]
[null,"TX000067","TextBox",null,null,"Ngày hẹn khám trước"]
[null,"TX000069","TextBox",null,null,"Ngày mất dấu"]
[null,"TX000070","TextBox",null,null,"Ngày tử vong"]
[null,"TX000068","TextBox",null,null,"Mã số khách hàng cũ"]
[null,"LS000007","ListBox",null,null,"Danh sách khách hàng"]
[null,"CK000023","CheckBox","All","Tất cả"]
[null,"CK000024","CheckBox","Clients who registed","Khách hàng đăng ký chăm sóc"]
[null,"CK000025","CheckBox","Clients who are in Pre-ART","Khách hàng đang Pre-ART"]
[null,"CK000026","CheckBox","Clients who are in ART","Khách hàng đang ART"]
[null,"CK000027","CheckBox","Clients who tranfer-in","Khách hàng chuyển đến"]
[null,"CK000028","CheckBox","Clients who tranfer-out","Khách hàng chuyển đi"]
[null,"CK000029","CheckBox","Clients who stopped treatment","Khách hàng đang dừng điều trị"]
[null,"CK000030","CheckBox","Clients who miss appointment","Khách hàng không đến khám"]
[null,"CK000031","CheckBox","Clients who dead","Khách hàng đã tử vong"]
[null,"CK000032","CheckBox","Client ID","Mã số KH"]

{"sheet":"msgContent","index":4,"n_rows":75,"n_cols":5,"rows_kept":75,"cut":false,"hidden":false,"merged":[]}
[null,null,null,"contentEng","contentVie"]
[null,null,null,"Warning","Lưu ý"]
[null,null,null,"Before using the tool, please fill in all system information.","Cần khai báo thông tin cấu hình hệ thống trước khi sử dụng."]
[null,null,null,"All fields are required. Please try again.","Yêu cầu điền đầy đủ thông tin. Vui lòng thử lại"]
[null,null,null,"Window will be closed and the data are unsaved.\nAre you sure to close this window?","Cửa sổ sẽ tự động đóng lại và dữ liệu sẽ không được lưu.\nBạn có chắc sẽ đóng cửa sổ này?"]
[null,null,null,"Please SAVE CHANGES before close the window.\n\nClick OK to close the application window. Click Cancel to return the application window.","Trước khi đóng cửa sổ ứng dụng, lưu lại mọi thay đổi để tránh mất số liệu.\n\nChọn OK sẽ đóng cửa sổ ứng dụng. Chọn Cancel sẽ quay lại cửa sổ ứng dụng."]
[null,null,null,"Input number in the range 0 - 150  only. Please try again.","Chỉ được nhập số trong khoảng 0 - 150. Vui lòng thử lại"]
[null,null,null,"Input number in the range 0 - 210  only. Please try again.","Chỉ được nhập số trong khoảng 0 - 210. Vui lòng thử lại"]
[null,null,null,"Input number only. Please try again.","Chỉ được nhập số. Vui lòng thử lại"]
[null,null,null,"Input date format only. Please try again.","Chỉ được nhập định dạng ngày tháng năm. Vui lòng thử lại"]
[null,null,null,"Delivery date must be greater than Confirm date","Ngày dự kiến sinh phải lớn hơn ngày xác định có thai "]
[null,null,null,"Next examination date must be greater than current examination date","Ngày hẹn tái khám phải lớn hơn ngày đến khám hiện tại "]
[null,null,null,"Re-testing date must be greater than current testing date","Ngày xét nghiệm lại phải lớn hơn ngày xét nghiệm hiện tại "]
[null,null,null,"Stop treatment date must be greater than start treatment date","Ngày kết thúc điều trị phải lớn hơn ngày bắt đầu điều trị"]
[null,null,null,"Used referal service date must be greater than or equal to referal date","Ngày nhận dịch vụ phải lớn hơn hoặc bằng ngày giới thiệu chuyển gửi"]
[null,null,null,"Appointment: From…","Hẹn khám từ ngày…"]
[null,null,null,"...to date","…đến ngày"]
[null,null,null,"Client ID","Mã số khách hàng"]
[null,null,null,"\"To Date\" must be greater than or equal to \"From Date\"","\"Ngày kết thúc\" phải lớn hơn hoặc bằng \"Ngày bắt đầu\""]
[null,null,null,"Month","Tháng"]
[null,null,null,"Year","Năm"]
[null,null,null,"January","Tháng Giêng"]
[null,null,null,"February","Tháng Hai"]
[null,null,null,"March","Tháng Ba"]
[null,null,null,"April","Tháng Tư"]
[null,null,null,"May","Tháng Năm"]
[null,null,null,"June","Tháng Sáu"]
[null,null,null,"July","Tháng Bảy"]
[null,null,null,"August","Tháng Tám"]
[null,null,null,"September","Tháng Chín"]
[null,null,null,"October","Tháng Mười"]
[null,null,null,"November","Tháng Mười một"]
[null,null,null,"December","Tháng Mười hai"]
[null,null,null,"Please specify what kind of testing client get.","Vui lòng ghi rõ loại xét nghiệm mà khách hàng đã nhận."]
[null,null,null,"Please specify testing date.","Vui lòng ghi rõ ngày làm xét nghiệm."]
[null,null,null,"Please select what row you want to delete .","Vui lòng chọn hàng số liệu mà bạn muốn xóa"]
[null,null,null,"Please specify what kind of service client are referred .","Vui lòng ghi rõ loại dịch mà khách hàng đã được giới thiệu."]
[null,null,null,"Please specify referal date.","Vui lòng ghi rõ ngày giới thiệu chuyển gửi."]
[null,null,null,"Please specify the information of referal place.","Vui lòng ghi rõ thông tin về nơi cung cấp dịch vụ mà khách hàng được chuyển gửi đến."]
[null,null,null,"Please specify what kind of treatment client get.","Vui lòng ghi rõ thông tin về loại hình điều trị mà khách hàng đã nhận"]
[null,null,null,"Please specify what kind of treatment regimen client get.","Vui lòng ghi rõ thông tin về phác đồ điều trị ARV mà khách hàng đã nhận"]
[null,null,null,"Please specify the reasons of stop treatment.","Vui lòng ghi rõ lý do khách hàng ngừng pháp đồ điều trị ARV"]
[null,null,null,"Please specify start treatment date.","Vui lòng ghi rõ ngày bắt đầu điều trị."]
[null,null,null,"Client ID and Next Examination Date  are required. Please try again.","Bắt buộc phải nhập Mã khách hàng và ngày hẹn tái khám. Vui lòng thử lại."]
[null,null,null,"Do you want to update the client's visit data to the database?","Bạn có muốn cập nhật thông tin của lượt khám này vào cơ sở dữ liệu?"]
[null,null,null,"The client's visit data have been updated successfully.","Thông tin của lượt khám đã được cập nhật thành công vào cơ sở dữ liệu."]
[null,null,null,"Timely","Đúng hẹn"]
[null,null,null,"Early ","Sớm "]
[null,null,null,"Late ","Muộn "]
[null,null,null," day (s)"," ngày"]
[null,null,null,"Client ID is not valid. Please try again.","Mã số khách hàng không hợp lệ. Vui lòng thử lại."]
[null,null,null,"Client list is empty or doesn't exist. Please add new client to the database.","Danh sách khách hàng đang trống hoặc không tồn tại. Vui lòng thêm khách hàng mới vào cơ sở dữ liệu."]
[null,null,null,"Input number in the range 1930 -  ","Chỉ được nhập số trong khoảng 1930 - "]
[null,null,null," only. Please try again.",". Vui lòng thử lại"]
[null,null,null,"Client's ID, name, gender and year of birth are required. Please try again.","Yêu cầu điền ngày đăng ký chăm sóc tại PKNT, mã số, tên, giới tính và năm sinh của khách hàng. Vui lòng thử lại"]
[null,null,null,"Client ID is already exists. Please try again.","Mã số khách hàng đã có trong hệ thống. Vui lòng thử lại."]
[null,null,null,"Please specify the information of referal place.","Vui lòng ghi rõ thông tin về nơi giới thiệu khách hàng được đến PKNT."]
[null,null,null,"Do you want to save the information of new client to the database?","Bạn có muốn cập nhật thông tin của khách hàng mới vào cơ sở dữ liệu?"]
[null,null,null,"The information of new client  have been updated successfully.","Thông tin của khách hàng mới đã được cập nhật thành công vào cơ sở dữ liệu."]
[null,null,null,"You have unsaved data on this form. Please note that all unsaved data will be removed. Do you want to continue? ","Bạn có một số thông tin trên biểu mẫu chưa được lưu vào cơ sở dữ liệu. Xin hãy lưu ý, toàn bộ thông tin chưa được lưu sẽ bị xóa khỏi biểu mẫu. Bạn có muốn tiếp tục?"]
[null,null,null,"Client id is in the incorrect format. Correct format example: ","Mã số khách hàng không đúng định dạng. Ví dụ định dạng đúng: "]
[null,null,null,"Client ID is already exists in the waiting list. Please try again.","Mã số khách hàng đã có trong danh sách lịch hẹn khám. Vui lòng thử lại."]
[null,null,null,"From date…","CLS từ ngày…"]
[null,null,null,"...to date","…đến ngày"]
[null,null,null,"REPORTING DATA MANAGEMENT TOOLS","BỘ CÔNG CỤ QUẢN LÝ SỐ LIỆU BÁO CÁO"]
[null,null,null,"HIV/AIDS CARE AND TREATMENT PROGRAM","CHƯƠNG TRÌNH CHĂM SÓC - ĐIỀU TRỊ HIV/AIDS"]
[null,null,null,"Appointment","Lịch khám"]
[null,null,null,"Client List","DS khách hàng"]
[null,null,null,"Paraclinical","Cận lâm sàng"]
[null,null,null,"Treatment","Điều trị"]
[null,null,null,"Referal","Chuyển gửi"]
[null,null,null,"Report","Báo cáo"]
[null,null,null,"Print","In sổ sách"]
[null,null,null,"Manage DB","Quản lý CSDL"]
[null,null,null,"Setting","Cài đặt"]

{"sheet":"setting","index":5,"n_rows":12,"n_cols":2,"rows_kept":12,"cut":false,"hidden":true,"merged":[]}
["opcID","HNO-01"]
["opcName","Phòng khám ngoại trú Hoàng Mai"]
["opcAddress","Khu Đô Thị Linh Đàm"]
["provinceName","Hà Nội"]
["districtName","Hoàng Mai"]
["communeName","Linh Đàm"]
["opcDescription",1325448]
["defaultLanguage","eng"]
["defaultBackupFolder","C:\\Users\\Nguyen Dinh Quan\\Desktop"]
["autoBackup",false]
["systemDate min","1900-01-01"]
["systemDate max","2099-01-01"]

{"sheet":"listInfor","index":6,"n_rows":699,"n_cols":10,"rows_kept":699,"cut":false,"hidden":true,"merged":[]}
["Tỉnh","Tỉnh","Thành phố","Mã số","Tên OPC","Tỉnh",null,"Nơi chuyển gửi","Giới tính","Báo cáo"]
["An Giang","An Giang","An Phú","AGI-01","Phòng khám ngoại trú Tân Châu","An Giang",null,"Phòng khám ngoại trú","Nam","6 tháng đầu năm"]
["Bà Rịa - Vũng Tàu","An Giang","Châu Đốc","AGI-02","Phòng khám ngoại trú Tịnh Biên","An Giang",null,"Cơ sở TVXN HIV","Nữ","6 tháng cuối năm"]
["Bắc Giang","An Giang","Châu Phú","AGI-03","Phòng khám ngoại trú Chợ Mới","An Giang",null,"Bệnh viện/phòng khám công",null,"Cả năm"]
["Bắc Kạn","An Giang","Châu Thành","BGI-01","Phòng khám ngoại trú Bắc Giang","Bắc Giang",null,"Bệnh viện/phòng khám tư"]
["Bạc Liêu","An Giang","Chợ Mới","CTH-01","Phòng khám ngoại trú Thốt Nốt","Cần Thơ",null,"Khác"]
["Bắc Ninh","An Giang","Long Xuyên","DBI-01","Phòng khám ngoại trú BVĐK Điện Biên","Điện Biên"]
["Bến Tre","An Giang","Phú Tân","DBI-02","Phòng khám ngoại trú Tuần Giáo","Điện Biên"]
["Bình Định","An Giang","Tân Châu","DBI-03","Phòng khám ngoại trú H. Điện Biên","Điện Biên"]
["Bình Dương","An Giang","Thoại Sơn","DBI-04","Phòng khám ngoại trú Mường Chà","Điện Biên"]
["Bình Phước","An Giang","Tịnh Biên","HNO-01","Phòng khám ngoại trú Hoàng Mai","Hà Nội"]
["Bình Thuận","An Giang","Tri Tôn","HNO-02","Chùa Hiển Quang","Hà Nội"]
["Cà Mau","Bà Rịa - Vũng Tàu","Bà Rịa","HNO-03","Phòng khám ngoại trú Hai Bà Trưng","Hà Nội"]
["Cần Thơ","Bà Rịa - Vũng Tàu","Châu Đức","HNO-04","Phòng khám ngoại trú Sơn Tây","Hà Nội"]
["Cao Bằng","Bà Rịa - Vũng Tàu","Côn Đảo","HNO-05","Phòng khám ngoại trú Sóc Sơn","Hà Nội"]
["Đà Nẵng","Bà Rịa - Vũng Tàu","Đất Đỏ","HNO-06","Phòng khám ngoại trú Tây Hồ","Hà Nội"]
["Đắk Lắk","Bà Rịa - Vũng Tàu","Long Điền","HNO-07","Phòng khám ngoại trú Ba Vì","Hà Nội"]
["Đắk Nông","Bà Rịa - Vũng Tàu","Tân Thành","HPG-01","Phòng khám ngoại trú Hải An","Hải Phòng"]
["Điện Biên","Bà Rịa - Vũng Tàu","Vũng Tàu","HPG-02","Phòng khám ngoại trú Đồ Sơn","Hải Phòng"]
["Đồng Nai","Bà Rịa - Vũng Tàu","Xuyên Mộc","HCM-01","Phòng khám ngoại trú Quận 8","Tp. Hồ Chí Minh"]
["Đồng Tháp","Bắc Giang","Bắc Giang","HCM-02","Phòng khám ngoại trú Thủ Đức","Tp. Hồ Chí Minh"]
["Gia Lai","Bắc Giang","Hiệp Hòa","HCM-03","Phòng khám ngoại trú Bình Thạnh","Tp. Hồ Chí Minh"]
["Hà Giang","Bắc Giang","Lạng Giang","HCM-04","Phòng khám ngoại trú Quận 3","Tp. Hồ Chí Minh"]
["Hà Nam","Bắc Giang","Lục Nam","HCM-05","Phòng khám ngoại trú Hóc Môn","Tp. Hồ Chí Minh"]
["Hà Nội","Bắc Giang","Lục Ngạn","HCM-06","Phòng khám ngoại trú Quận 6","Tp. Hồ Chí Minh"]
["Hà Tĩnh","Bắc Giang","Sơn Động","HCM-07","Phòng khám ngoại trú Quận 9","Tp. Hồ Chí Minh"]
["Hải Dương","Bắc Giang","Tân Yên","HCM-08","TT Mai Hòa","Tp. Hồ Chí Minh"]
["Hải Phòng","Bắc Giang","Việt Yên","HCM-09","TT Linh Xuân","Tp. Hồ Chí Minh"]
["Hậu Giang","Bắc Giang","Yên Dũng","LCI-01","Phòng khám ngoại trú Lào Cai","Lào Cai"]
["Hoà Bình","Bắc Giang","Yên Thế","LCI-02","Phòng khám ngoại trú Văn Bàn","Lào Cai"]
["Hưng Yên","Bắc Kạn","Ba Bể","LCI-03","Phòng khám ngoại trú Bát Xát","Lào Cai"]
["Khánh Hoà","Bắc Kạn","Bắc Kạn","NAN-01","Phòng khám ngoại trú Diễn Châu","Nghệ An"]
["Kiên Giang","Bắc Kạn","Bạch Thông","NAN-02","Phòng khám ngoại trú Quế Phong","Nghệ An"]
["Kom Tum","Bắc Kạn","Chợ Đồn","NAN-03","Phòng khám ngoại trú Quỳ Châu","Nghệ An"]
["Lai Châu","Bắc Kạn","Chợ Mới","QNG-01","Phòng khám ngoại trú Cẩm Phả","Quảng Ninh"]
["Lâm Đồng","Bắc Kạn","Na Rì","QNG-02","Phòng khám ngoại trú Vân Đồn","Quảng Ninh"]
["Lạng Sơn","Bắc Kạn","Ngân Sơn","QNG-03","Phòng khám ngoại trú Móng Cái","Quảng Ninh"]
["Lào Cai","Bắc Kạn","Pác Nặm","QNG-04","Phòng khám ngoại trú Hoành Bồ","Quảng Ninh"]
["Long An","Bạc Liêu","Bạc Liêu","TBH-01","Phòng khám ngoại trú Đông Hưng","Thái Bình"]
["Nam Định","Bạc Liêu","Đông Hải"]
["Nghệ An","Bạc Liêu","Giá Rai"]
["Ninh Bình","Bạc Liêu","Hoà Bình"]
["Ninh Thuận","Bạc Liêu","Hồng Dân"]
["Phú Thọ","Bạc Liêu","Phước Long"]
["Phú Yên","Bạc Liêu","Vĩnh Lợi"]
["Quảng Bình","Bắc Ninh","Bắc Ninh"]
["Quảng Nam","Bắc Ninh","Gia Bình"]
["Quảng Ngãi","Bắc Ninh","Lương Tài"]
["Quảng Ninh","Bắc Ninh","Quế Võ"]
["Quảng Trị","Bắc Ninh","Thuận Thành"]
["Sóc Trăng","Bắc Ninh","Tiên Du"]
["Sơn La","Bắc Ninh","Từ Sơn"]
["Tây Ninh","Bắc Ninh","Yên Phong"]
["Thái Bình","Bến Tre","Ba Tri"]
["Thái Nguyên","Bến Tre","Bến Tre"]
["Thanh Hoá","Bến Tre","Bình Đại"]
["Thừa Thiên Huế","Bến Tre","Châu Thành"]
["Tiền Giang","Bến Tre","Chợ Lách"]
["Tp. Hồ Chí Minh","Bến Tre","Giồng Trôm"]
["Trà Vinh","Bến Tre","Mỏ Cày Bắc"]
["Tuyên Quang","Bến Tre","Mỏ Cày Nam"]
["Vĩnh Long","Bến Tre","Thạnh Phú"]
["Vĩnh Phúc","Bình Định","An Lão"]
["Yên Bái","Bình Định","An Nhơn"]
[null,"Bình Định","Hoài Ân"]
[null,"Bình Định","Hoài Nhơn"]
[null,"Bình Định","Phù Cát"]
[null,"Bình Định","Phù Mỹ"]
[null,"Bình Định","Qui Nhơn"]
[null,"Bình Định","Tây Sơn"]
[null,"Bình Định","Tuy Phước"]
[null,"Bình Định","Vân Canh"]
[null,"Bình Định","Vĩnh Thạnh"]
[null,"Bình Dương","Bến Cát"]
[null,"Bình Dương","Dầu Tiếng"]
[null,"Bình Dương","Dĩ An"]
[null,"Bình Dương","Phú Giáo"]
[null,"Bình Dương","Tân Uyên"]
[null,"Bình Dương","Thủ Dầu Một"]
[null,"Bình Dương","Thuận An"]
[null,"Bình Phước","Bình Long"]
[null,"Bình Phước","Bù Đăng"]
[null,"Bình Phước","Bù Đốp"]
[null,"Bình Phước","Bù Gia Mập"]
[null,"Bình Phước","Chơn Thành"]
[null,"Bình Phước","Đồng Phú"]
[null,"Bình Phước","Đồng Xoài"]
[null,"Bình Phước","Hớn Quản"]
[null,"Bình Phước","Lộc Ninh"]
[null,"Bình Phước","Phước Long"]
[null,"Bình Thuận","Bắc Bình"]
[null,"Bình Thuận","Đức Linh"]
[null,"Bình Thuận","Hàm Tân"]
[null,"Bình Thuận","Hàm Thuận Bắc"]
[null,"Bình Thuận","Hàm Thuận Nam"]
[null,"Bình Thuận","La Gi"]
[null,"Bình Thuận","Phan Thiết"]
[null,"Bình Thuận","Phú Quý"]
[null,"Bình Thuận","Tánh Linh"]
[null,"Bình Thuận","Tuy Phong"]
[null,"Cà Mau","Cà Mau"]
[null,"Cà Mau","Cái Nước"]
[null,"Cà Mau","Đầm Dơi"]
[null,"Cà Mau","Năm Căn"]
[null,"Cà Mau","Ngọc Hiển"]
[null,"Cà Mau","Phú Tân"]
[null,"Cà Mau","Thới Bình"]
[null,"Cà Mau","Trần Văn Thời"]
[null,"Cà Mau","U Minh"]
[null,"Cần Thơ","Bình Thủy"]
[null,"Cần Thơ","Cái Răng"]
[null,"Cần Thơ","Cờ Đỏ"]
[null,"Cần Thơ","Ninh Kiều"]
[null,"Cần Thơ","Ô Môn"]
[null,"Cần Thơ","Phong Điền"]
[null,"Cần Thơ","Thới Lai"]
[null,"Cần Thơ","Thốt Nốt"]
[null,"Cần Thơ","Vĩnh Thạnh"]
[null,"Cao Bằng","Bảo Lạc"]
[null,"Cao Bằng","Bảo Lâm"]
[null,"Cao Bằng","Cao Bằng"]
[null,"Cao Bằng","Hạ Lang"]
[null,"Cao Bằng","Hà Quảng"]
[null,"Cao Bằng","Hòa An"]
[null,"Cao Bằng","Nguyên Bình"]
[null,"Cao Bằng","Phục Hòa"]
[null,"Cao Bằng","Quảng Uyên"]
[null,"Cao Bằng","Thạch An"]
[null,"Cao Bằng","Thông Nông"]
[null,"Cao Bằng","Trà Lĩnh"]
[null,"Cao Bằng","Trùng Khánh"]
[null,"Đà Nẵng","Cẩm Lệ"]
[null,"Đà Nẵng","Hải Châu"]
[null,"Đà Nẵng","Hoà Vang"]
[null,"Đà Nẵng","Hoàng Sa"]
[null,"Đà Nẵng","Liên Chiểu"]
[null,"Đà Nẵng","Ngũ Hành Sơn"]
[null,"Đà Nẵng","Sơn Trà"]
[null,"Đà Nẵng","Thanh Khê"]
[null,"Đắk Lắk","Buôn Đôn"]
[null,"Đắk Lắk","Buôn Hồ"]
[null,"Đắk Lắk","Buôn Ma Thuột"]
[null,"Đắk Lắk","Cư Kuin"]
[null,"Đắk Lắk","Cư M'gar"]
[null,"Đắk Lắk","Ea H'leo"]
[null,"Đắk Lắk","Ea Kar"]
[null,"Đắk Lắk","Ea Súp"]
[null,"Đắk Lắk","Krông Ana"]
[null,"Đắk Lắk","Krông Bông"]
[null,"Đắk Lắk","Krông Búk"]
[null,"Đắk Lắk","Krông Năng"]
[null,"Đắk Lắk","Krông Pắk"]
[null,"Đắk Lắk","Lăk"]
[null,"Đắk Lắk","M'Đrăk"]
[null,"Đắk Nông","Cư Jút"]
[null,"Đắk Nông","Đăk Glong"]
[null,"Đắk Nông","Đăk Mil"]
[null,"Đắk Nông","Đăk R'Lấp"]
[null,"Đắk Nông","Đăk Song"]
[null,"Đắk Nông","Gia Nghĩa"]
[null,"Đắk Nông","Krông Nô"]
[null,"Đắk Nông","Tuy Đức"]
[null,"Điện Biên","Điện Biên"]
[null,"Điện Biên","Điện Biên Đông"]
[null,"Điện Biên","Điện Biên Phủ"]
[null,"Điện Biên","Mường Ảng"]
[null,"Điện Biên","Mường Chà"]
[null,"Điện Biên","Mường Lay"]
[null,"Điện Biên","Mường Nhé"]
[null,"Điện Biên","Tủa Chùa"]
[null,"Điện Biên","Tuần Giáo"]
[null,"Đồng Nai","Biên Hòa"]
[null,"Đồng Nai","Cẩm Mỹ"]
[null,"Đồng Nai","Định Quán"]
[null,"Đồng Nai","Long Khánh"]
[null,"Đồng Nai","Long Thành"]
[null,"Đồng Nai","Nhơn Trạch"]
[null,"Đồng Nai","Tân Phú"]
[null,"Đồng Nai","Thống Nhất"]
[null,"Đồng Nai","Trảng Bom"]
[null,"Đồng Nai","Vĩnh Cửu"]
[null,"Đồng Nai","Xuân Lộc"]
[null,"Đồng Tháp","Cao Lãnh"]
[null,"Đồng Tháp","Cao Lãnh"]
[null,"Đồng Tháp","Châu Thành"]
[null,"Đồng Tháp","Hồng Ngự"]
[null,"Đồng Tháp","Hồng Ngự"]
[null,"Đồng Tháp","Lai Vung"]
[null,"Đồng Tháp","Lấp Vò"]
[null,"Đồng Tháp","Sa Đéc"]
[null,"Đồng Tháp","Tam Nông"]
[null,"Đồng Tháp","Tân Hồng"]
[null,"Đồng Tháp","Thanh Bình"]
[null,"Đồng Tháp","Tháp Mười"]
[null,"Gia Lai","An Khê"]
[null,"Gia Lai","Ayun Pa"]
[null,"Gia Lai","Chư Păh"]
[null,"Gia Lai","Chư Prông"]
[null,"Gia Lai","Chư Pưh"]
[null,"Gia Lai","Chư Sê"]
[null,"Gia Lai","Đăk Đoa"]
[null,"Gia Lai","Đắk Pơ"]
[null,"Gia Lai","Đức Cơ"]
[null,"Gia Lai","Ia Grai"]
[null,"Gia Lai","Ia Pa"]
[null,"Gia Lai","KBang"]
[null,"Gia Lai","Kông Chro"]
[null,"Gia Lai","Krông Pa"]
[null,"Gia Lai","Mang Yang"]
[null,"Gia Lai","Phú Thiện"]
[null,"Gia Lai","Pleiku"]
[null,"Hà Giang","Bắc Mê"]
[null,"Hà Giang","Bắc Quang"]
[null,"Hà Giang","Đồng Văn"]
[null,"Hà Giang","Hà Giang"]
[null,"Hà Giang","Hoàng Su Phì"]
[null,"Hà Giang","Mèo Vạc"]
[null,"Hà Giang","Quản Bạ"]
[null,"Hà Giang","Quang Bình"]
[null,"Hà Giang","Vị Xuyên"]
[null,"Hà Giang","Xín Mần"]
[null,"Hà Giang","Yên Minh"]
[null,"Hà Nam","Bình Lục"]
[null,"Hà Nam","Duy Tiên"]
[null,"Hà Nam","Kim Bảng"]
[null,"Hà Nam","Lý Nhân"]
[null,"Hà Nam","Phủ Lý"]
[null,"Hà Nam","Thanh Liêm"]
[null,"Hà Nội","Ba Đình"]
[null,"Hà Nội","Ba Vì"]
[null,"Hà Nội","Cầu Giấy"]
[null,"Hà Nội","Chương Mỹ"]
[null,"Hà Nội","Đan Phượng"]
[null,"Hà Nội","Đông Anh"]
[null,"Hà Nội","Đống Đa"]
[null,"Hà Nội","Gia Lâm"]
[null,"Hà Nội","Hà Đông"]
[null,"Hà Nội","Hai Bà Trưng"]
[null,"Hà Nội","Hoài Đức"]
[null,"Hà Nội","Hoàn Kiếm"]
[null,"Hà Nội","Hoàng Mai"]
[null,"Hà Nội","Long Biên"]
[null,"Hà Nội","Mê Linh"]
[null,"Hà Nội","Mỹ Đức"]
[null,"Hà Nội","Phú Xuyên"]
[null,"Hà Nội","Phúc Thọ"]
[null,"Hà Nội","Quốc Oai"]
[null,"Hà Nội","Sóc Sơn"]
[null,"Hà Nội","Sơn Tây"]
[null,"Hà Nội","Tây Hồ"]
[null,"Hà Nội","Thạch Thất"]
[null,"Hà Nội","Thanh Oai"]
[null,"Hà Nội","Thanh Trì"]
[null,"Hà Nội","Thanh Xuân"]
[null,"Hà Nội","Thường Tín"]
[null,"Hà Nội","Từ Liêm"]
[null,"Hà Nội","Ứng Hòa"]
[null,"Hà Tĩnh","Cẩm Xuyên"]
[null,"Hà Tĩnh","Can Lộc"]
[null,"Hà Tĩnh","Đức Thọ"]
[null,"Hà Tĩnh","Hà Tĩnh"]
[null,"Hà Tĩnh","Hồng Lĩnh"]
[null,"Hà Tĩnh","Hương Khê"]
[null,"Hà Tĩnh","Hương Sơn"]
[null,"Hà Tĩnh","Kỳ Anh"]
[null,"Hà Tĩnh","Lộc Hà"]
[null,"Hà Tĩnh","Nghi Xuân"]
[null,"Hà Tĩnh","Thạch Hà"]
[null,"Hà Tĩnh","Vũ Quang"]
[null,"Hải Dương","An Lão"]
[null,"Hải Dương","Bình Giang"]
[null,"Hải Dương","Cẩm Giàng"]
[null,"Hải Dương","Chí Linh"]
[null,"Hải Dương","Gia Lộc"]
[null,"Hải Dương","Hải Dương"]
[null,"Hải Dương","Kim Thành"]
[null,"Hải Dương","Kinh Môn"]
[null,"Hải Dương","Nam Sách"]
[null,"Hải Dương","Ninh Giang"]
[null,"Hải Dương","Thanh Hà"]
[null,"Hải Dương","Thanh Miện"]
[null,"Hải Dương","Tiên Lãng"]
[null,"Hải Dương","Tứ Kỳ"]
[null,"Hải Dương","Vĩnh Bảo"]
[null,"Hải Phòng","An Dương"]
[null,"Hải Phòng","Bạch Long Vĩ"]
[null,"Hải Phòng","Cát Hải"]
[null,"Hải Phòng","Châu Thành"]
[null,"Hải Phòng","Châu Thành A"]
[null,"Hải Phòng","Đồ Sơn"]
[null,"Hải Phòng","Dương Kinh"]
[null,"Hải Phòng","Hải An"]
[null,"Hải Phòng","Hồng Bàng"]
[null,"Hải Phòng","Kiến An"]
[null,"Hải Phòng","Kiến Thụy"]
[null,"Hải Phòng","Lê Chân"]
[null,"Hải Phòng","Long Mỹ"]
[null,"Hải Phòng","Ngã Bảy"]
[null,"Hải Phòng","Ngô Quyền"]
[null,"Hải Phòng","Phụng Hiệp"]
[null,"Hải Phòng","Thuỷ Nguyên"]
[null,"Hải Phòng","Vị Thanh"]
[null,"Hải Phòng","Vị Thủy"]
[null,"Hoà Bình","Cao Phong"]
[null,"Hoà Bình","Đà Bắc"]
[null,"Hoà Bình","Hoà Bình"]
[null,"Hoà Bình","Kim Bôi"]
[null,"Hoà Bình","Kỳ Sơn"]
[null,"Hoà Bình","Lạc Sơn"]
[null,"Hoà Bình","Lạc Thủy"]
[null,"Hoà Bình","Lương Sơn"]
[null,"Hoà Bình","Mai Châu"]
[null,"Hoà Bình","Tân Lạc"]
[null,"Hoà Bình","Yên Thủy"]
[null,"Hưng Yên","Ân Thi"]
[null,"Hưng Yên","Hưng Yên"]
[null,"Hưng Yên","Khoái Châu"]
[null,"Hưng Yên","Kim Động"]
[null,"Hưng Yên","Mỹ Hào"]
[null,"Hưng Yên","Phù Cừ"]
[null,"Hưng Yên","Tiên Lữ"]
[null,"Hưng Yên","Văn Giang"]
[null,"Hưng Yên","Văn Lâm"]
[null,"Hưng Yên","Yên Mỹ"]
[null,"Khánh Hoà","Cam Lâm"]
[null,"Khánh Hoà","Cam Ranh"]
[null,"Khánh Hoà","Diên Khánh"]
[null,"Khánh Hoà","Khánh Sơn"]
[null,"Khánh Hoà","Khánh Vĩnh"]
[null,"Khánh Hoà","Nha Trang"]
[null,"Khánh Hoà","Ninh Hòa"]
[null,"Khánh Hoà","Trường Sa"]
[null,"Khánh Hoà","Vạn Ninh"]
[null,"Kiên Giang","An Biên"]
[null,"Kiên Giang","An Minh"]
[null,"Kiên Giang","Châu Thành"]
[null,"Kiên Giang","Giang Thành"]
[null,"Kiên Giang","Giồng Riềng"]
[null,"Kiên Giang","Gò Quao"]
[null,"Kiên Giang","Hà Tiên"]
[null,"Kiên Giang","Hòn Đất"]
[null,"Kiên Giang","Kiên Hải"]
[null,"Kiên Giang","Kiên Lương"]
[null,"Kiên Giang","Phú Quốc"]
[null,"Kiên Giang","Rạch Giá"]
[null,"Kiên Giang","Tân Hiệp"]
[null,"Kiên Giang","U Minh Thượng"]
[null,"Kiên Giang","Vĩnh Thuận"]
[null,"Kom Tum","Đắk Glei"]
[null,"Kom Tum","Đắk Hà"]
[null,"Kom Tum","Đăk Tô"]
[null,"Kom Tum","Kon Plông"]
[null,"Kom Tum","Kon Rẫy"]
[null,"Kom Tum","Kon Tum"]
[null,"Kom Tum","Ngọc Hồi"]
[null,"Kom Tum","Sa Thầy"]
[null,"Kom Tum","Tu Mơ Rông"]
[null,"Lai Châu","Lai Châu"]
[null,"Lai Châu","Mường Tè"]
[null,"Lai Châu","Phong Thổ"]
[null,"Lai Châu","Sìn Hồ"]
[null,"Lai Châu","Tam Đường"]
[null,"Lai Châu","Tân Uyên"]
[null,"Lai Châu","Than Uyên"]
[null,"Lâm Đồng","Bảo Lâm"]
[null,"Lâm Đồng","Bảo Lộc"]
[null,"Lâm Đồng","Cát Tiên"]
[null,"Lâm Đồng","Đạ Huoai"]
[null,"Lâm Đồng","Đà Lạt"]
[null,"Lâm Đồng","Đạ Tẻh"]
[null,"Lâm Đồng","Đam Rông"]
[null,"Lâm Đồng","Di Linh"]
[null,"Lâm Đồng","Đơn Dương"]
[null,"Lâm Đồng","Đức Trọng"]
[null,"Lâm Đồng","Lạc Dương"]
[null,"Lâm Đồng","Lâm Hà"]
[null,"Lạng Sơn","Bắc Sơn"]
[null,"Lạng Sơn","Bình Gia"]
[null,"Lạng Sơn","Cao Lộc"]
[null,"Lạng Sơn","Chi Lăng"]
[null,"Lạng Sơn","Đình Lập"]
[null,"Lạng Sơn","Hữu Lũng"]
[null,"Lạng Sơn","Lạng Sơn"]
[null,"Lạng Sơn","Lộc Bình"]
[null,"Lạng Sơn","Tràng Định"]
[null,"Lạng Sơn","Vãn Lãng"]
[null,"Lạng Sơn","Văn Quan"]
[null,"Lào Cai","Bắc Hà"]
[null,"Lào Cai","Bảo Thắng"]
[null,"Lào Cai","Bảo Yên"]
[null,"Lào Cai","Bát Xát"]
[null,"Lào Cai","Lào Cai"]
[null,"Lào Cai","Mường Khương"]
[null,"Lào Cai","Sa Pa"]
[null,"Lào Cai","Si Ma Cai"]
[null,"Lào Cai","Văn Bàn"]
[null,"Long An","Bến Lức"]
[null,"Long An","Cần Đước"]
[null,"Long An","Cần Giuộc"]
[null,"Long An","Châu Thành"]
[null,"Long An","Đức Hòa"]
[null,"Long An","Đức Huệ"]
[null,"Long An","Mộc Hóa"]
[null,"Long An","Tân An"]
[null,"Long An","Tân Hưng"]
[null,"Long An","Tân Thạnh"]
[null,"Long An","Tân Trụ"]
[null,"Long An","Thạnh Hóa"]
[null,"Long An","Thủ Thừa"]
[null,"Long An","Vĩnh Hưng"]
[null,"Nam Định","Giao Thủy"]
[null,"Nam Định","Hải Hậu"]
[null,"Nam Định","Mỹ Lộc"]
[null,"Nam Định","Nam Định"]
[null,"Nam Định","Nam Trực"]
[null,"Nam Định","Nghĩa Hưng"]
[null,"Nam Định","Trực Ninh"]
[null,"Nam Định","Vụ Bản"]
[null,"Nam Định","Xuân Trường"]
[null,"Nam Định","Ý Yên"]
[null,"Nghệ An","Anh Sơn"]
[null,"Nghệ An","Con Cuông"]
[null,"Nghệ An","Cửa Lò"]
[null,"Nghệ An","Diễn Châu"]
[null,"Nghệ An","Đô Lương"]
[null,"Nghệ An","Hưng Nguyên"]
[null,"Nghệ An","Kỳ Sơn"]
[null,"Nghệ An","Nam Đàn"]
[null,"Nghệ An","Nghi Lộc"]
[null,"Nghệ An","Nghĩa Đàn"]
[null,"Nghệ An","Quế Phong"]
[null,"Nghệ An","Quỳ Châu"]
[null,"Nghệ An","Quỳ Hợp"]
[null,"Nghệ An","Quỳnh Lưu"]
[null,"Nghệ An","Tân Kỳ"]
[null,"Nghệ An","Thái Hòa"]
[null,"Nghệ An","Thanh Chương"]
[null,"Nghệ An","Tương Dương"]
[null,"Nghệ An","Vinh"]
[null,"Nghệ An","Yên Thành"]
[null,"Ninh Bình","Gia Viễn"]
[null,"Ninh Bình","Hoa Lư"]
[null,"Ninh Bình","Kim Sơn"]
[null,"Ninh Bình","Nho Quan"]
[null,"Ninh Bình","Ninh Bình"]
[null,"Ninh Bình","Tam Điệp"]
[null,"Ninh Bình","Yên Khánh"]
[null,"Ninh Bình","Yên Mô"]
[null,"Ninh Thuận","Bác Ái"]
[null,"Ninh Thuận","Ninh Hải"]
[null,"Ninh Thuận","Ninh Phước"]
[null,"Ninh Thuận","Ninh Sơn"]
[null,"Ninh Thuận","Phan Rang-Tháp Chàm"]
[null,"Ninh Thuận","Thuận Bắc"]
[null,"Ninh Thuận","Thuận Nam"]
[null,"Phú Thọ","Cẩm Khê"]
[null,"Phú Thọ","Đoan Hùng"]
[null,"Phú Thọ","Hạ Hòa"]
[null,"Phú Thọ","Lâm Thao"]
[null,"Phú Thọ","Phù Ninh"]
[null,"Phú Thọ","Phú Thọ"]
[null,"Phú Thọ","Tam Nông"]
[null,"Phú Thọ","Tân Sơn"]
[null,"Phú Thọ","Thanh Ba"]
[null,"Phú Thọ","Thanh Sơn"]
[null,"Phú Thọ","Thanh Thủy"]
[null,"Phú Thọ","Việt Trì"]
[null,"Phú Thọ","Yên Lập"]
[null,"Phú Yên","Đông Hòa"]
[null,"Phú Yên","Đồng Xuân"]
[null,"Phú Yên","Phú Hòa"]
[null,"Phú Yên","Sơn Hòa"]
[null,"Phú Yên","Sông Cầu"]
[null,"Phú Yên","Sông Hinh"]
[null,"Phú Yên","Tây Hòa"]
[null,"Phú Yên","Tuy An"]
[null,"Phú Yên","Tuy Hòa"]
[null,"Quảng Bình","Bố Trạch"]
[null,"Quảng Bình","Đồng Hới"]
[null,"Quảng Bình","Lệ Thủy"]
[null,"Quảng Bình","Minh Hóa"]
[null,"Quảng Bình","Quảng Ninh"]
[null,"Quảng Bình","Quảng Trạch"]
[null,"Quảng Bình","Tuyên Hóa"]
[null,"Quảng Nam","Bắc Trà My"]
[null,"Quảng Nam","Đại Lộc"]
[null,"Quảng Nam","Điện Bàn"]
[null,"Quảng Nam","Đông Giang"]
[null,"Quảng Nam","Duy Xuyên"]
[null,"Quảng Nam","Hiệp Đức"]
[null,"Quảng Nam","Hội An"]
[null,"Quảng Nam","Nam Giang"]
[null,"Quảng Nam","Nam Trà My"]
[null,"Quảng Nam","Nông Sơn"]
[null,"Quảng Nam","Núi Thành"]
[null,"Quảng Nam","Phú Ninh"]
[null,"Quảng Nam","Phước Sơn"]
[null,"Quảng Nam","Quế Sơn"]
[null,"Quảng Nam","Tam Kỳ"]
[null,"Quảng Nam","Tây Giang"]
[null,"Quảng Nam","Thăng Bình"]
[null,"Quảng Nam","Tiên Phước"]
[null,"Quảng Ngãi","Ba Tơ"]
[null,"Quảng Ngãi","Bình Sơn"]
[null,"Quảng Ngãi","Đức Phổ"]
[null,"Quảng Ngãi","Lý Sơn"]
[null,"Quảng Ngãi","Minh Long"]
[null,"Quảng Ngãi","Mộ Đức"]
[null,"Quảng Ngãi","Nghĩa Hành"]
[null,"Quảng Ngãi","Quảng Ngãi"]
[null,"Quảng Ngãi","Sơn Hà"]
[null,"Quảng Ngãi","Sơn Tây"]
[null,"Quảng Ngãi","Sơn Tịnh"]
[null,"Quảng Ngãi","Tây Trà"]
[null,"Quảng Ngãi","Trà Bồng"]
[null,"Quảng Ngãi","Tư Nghĩa"]
[null,"Quảng Ninh","Ba Chẽ"]
[null,"Quảng Ninh","Bình Liêu"]
[null,"Quảng Ninh","Cẩm Phả"]
[null,"Quảng Ninh","Cô Tô"]
[null,"Quảng Ninh","Đầm Hà"]
[null,"Quảng Ninh","Đông Triều"]
[null,"Quảng Ninh","Hạ Long"]
[null,"Quảng Ninh","Hải Hà"]
[null,"Quảng Ninh","Hoành Bồ"]
[null,"Quảng Ninh","Móng Cái"]
[null,"Quảng Ninh","Quảng Yên"]
[null,"Quảng Ninh","Tiên Yên"]
[null,"Quảng Ninh","Uông Bí"]
[null,"Quảng Ninh","Vân Đồn"]
[null,"Quảng Trị","Cam Lộ"]
[null,"Quảng Trị","Cồn Cỏ"]
[null,"Quảng Trị","Đa Krông"]
[null,"Quảng Trị","Đông Hà"]
[null,"Quảng Trị","Gio Linh"]
[null,"Quảng Trị","Hải Lăng"]
[null,"Quảng Trị","Hướng Hóa"]
[null,"Quảng Trị","Quảng Trị"]
[null,"Quảng Trị","Triệu Phong"]
[null,"Quảng Trị","Vĩnh Linh"]
[null,"Sóc Trăng","Châu Thành"]
[null,"Sóc Trăng","Cù Lao Dung"]
[null,"Sóc Trăng","Kế Sách"]
[null,"Sóc Trăng","Long Phú"]
[null,"Sóc Trăng","Mỹ Tú"]
[null,"Sóc Trăng","Mỹ Xuyên"]
[null,"Sóc Trăng","Ngã Năm"]
[null,"Sóc Trăng","Sóc Trăng"]
[null,"Sóc Trăng","Thạnh Trị"]
[null,"Sóc Trăng","Trần Đề"]
[null,"Sóc Trăng","Vĩnh Châu"]
[null,"Sơn La","Bắc Yên"]
[null,"Sơn La","Mai Sơn"]
[null,"Sơn La","Mộc Châu"]
[null,"Sơn La","Mường La"]
[null,"Sơn La","Phù Yên"]
[null,"Sơn La","Quỳnh Nhai"]
[null,"Sơn La","Sơn La"]
[null,"Sơn La","Sông Mã"]
[null,"Sơn La","Sốp Cộp"]
[null,"Sơn La","Thuận Châu"]
[null,"Sơn La","Yên Châu"]
[null,"Tây Ninh","Bến Cầu"]
[null,"Tây Ninh","Châu Thành"]
[null,"Tây Ninh","Dương Minh Châu"]
[null,"Tây Ninh","Gò Dầu"]
[null,"Tây Ninh","Hòa Thành"]
[null,"Tây Ninh","Tân Biên"]
[null,"Tây Ninh","Tân Châu"]
[null,"Tây Ninh","Tây Ninh"]
[null,"Tây Ninh","Trảng Bàng"]
[null,"Thái Bình","Đông Hưng"]
[null,"Thái Bình","Hưng Hà"]
[null,"Thái Bình","Kiến Xương"]
[null,"Thái Bình","Quỳnh Phụ"]
[null,"Thái Bình","Thái Bình"]
[null,"Thái Bình","Thái Thụy"]
[null,"Thái Bình","Tiền Hải"]
[null,"Thái Bình","Vũ Thư"]
[null,"Thái Nguyên","Đại Từ"]
[null,"Thái Nguyên","Định Hóa"]
[null,"Thái Nguyên","Đồng Hỷ"]
[null,"Thái Nguyên","Phổ Yên"]
[null,"Thái Nguyên","Phú Bình"]
[null,"Thái Nguyên","Phú Lương"]
[null,"Thái Nguyên","Sông Công"]
[null,"Thái Nguyên","Thái Nguyên"]
[null,"Thái Nguyên","Võ Nhai"]
[null,"Thanh Hoá","Bá Thước"]
[null,"Thanh Hoá","Bỉm Sơn"]
[null,"Thanh Hoá","Cẩm Thủy"]
[null,"Thanh Hoá","Đông Sơn"]
[null,"Thanh Hoá","Hà Trung"]
[null,"Thanh Hoá","Hậu Lộc"]
[null,"Thanh Hoá","Hoằng Hóa"]
[null,"Thanh Hoá","Lang Chánh"]
[null,"Thanh Hoá","Mường Lát"]
[null,"Thanh Hoá","Nga Sơn"]
[null,"Thanh Hoá","Ngọc Lặc"]
[null,"Thanh Hoá","Như Thanh"]
[null,"Thanh Hoá","Như Xuân"]
[null,"Thanh Hoá","Nông Cống"]
[null,"Thanh Hoá","Quan Hóa"]
[null,"Thanh Hoá","Quan Sơn"]
[null,"Thanh Hoá","Quảng Xương"]
[null,"Thanh Hoá","Sầm Sơn"]
[null,"Thanh Hoá","Thạch Thành"]
[null,"Thanh Hoá","Thanh Hóa"]
[null,"Thanh Hoá","Thiệu Hóa"]
[null,"Thanh Hoá","Thọ Xuân"]
[null,"Thanh Hoá","Thường Xuân"]
[null,"Thanh Hoá","Tĩnh Gia"]
[null,"Thanh Hoá","Triệu Sơn"]
[null,"Thanh Hoá","Vĩnh Lộc"]
[null,"Thanh Hoá","Yên Định"]
[null,"Thừa Thiên Huế","A Lưới"]
[null,"Thừa Thiên Huế","Huế"]
[null,"Thừa Thiên Huế","Hương Thủy"]
[null,"Thừa Thiên Huế","Hương Trà"]
[null,"Thừa Thiên Huế","Nam Đông"]
[null,"Thừa Thiên Huế","Phong Điền"]
[null,"Thừa Thiên Huế","Phú Lộc"]
[null,"Thừa Thiên Huế","Phú Vang"]
[null,"Thừa Thiên Huế","Quảng Điền"]
[null,"Tiền Giang","Cái Bè"]
[null,"Tiền Giang","Cai Lậy"]
[null,"Tiền Giang","Châu Thành"]
[null,"Tiền Giang","Chợ Gạo"]
[null,"Tiền Giang","Gò Công"]
[null,"Tiền Giang","Gò Công Đông"]
[null,"Tiền Giang","Gò Công Tây"]
[null,"Tiền Giang","Mỹ Tho"]
[null,"Tiền Giang","Tân Phú Đông"]
[null,"Tiền Giang","Tân Phước"]
[null,"Tp. Hồ Chí Minh","Bình Chánh"]
[null,"Tp. Hồ Chí Minh","Bình Tân"]
[null,"Tp. Hồ Chí Minh","Bình Thạnh"]
[null,"Tp. Hồ Chí Minh","Cần Giờ"]
[null,"Tp. Hồ Chí Minh","Củ Chi"]
[null,"Tp. Hồ Chí Minh","Gò Vấp"]
[null,"Tp. Hồ Chí Minh","Hóc Môn"]
[null,"Tp. Hồ Chí Minh","Nhà Bè"]
[null,"Tp. Hồ Chí Minh","Phú Nhuận"]
[null,"Tp. Hồ Chí Minh","Quận 1"]
[null,"Tp. Hồ Chí Minh","Quận 10"]
[null,"Tp. Hồ Chí Minh","Quận 11"]
[null,"Tp. Hồ Chí Minh","Quận 12"]
[null,"Tp. Hồ Chí Minh","Quận 2"]
[null,"Tp. Hồ Chí Minh","Quận 3"]
[null,"Tp. Hồ Chí Minh","Quận 4"]
[null,"Tp. Hồ Chí Minh","Quận 5"]
[null,"Tp. Hồ Chí Minh","Quận 6"]
[null,"Tp. Hồ Chí Minh","Quận 7"]
[null,"Tp. Hồ Chí Minh","Quận 8"]
[null,"Tp. Hồ Chí Minh","Quận 9"]
[null,"Tp. Hồ Chí Minh","Tân Bình"]
[null,"Tp. Hồ Chí Minh","Tân Phú"]
[null,"Tp. Hồ Chí Minh","Thủ Đức"]
[null,"Trà Vinh","Càng Long"]
[null,"Trà Vinh","Cầu Kè"]
[null,"Trà Vinh","Cầu Ngang"]
[null,"Trà Vinh","Châu Thành"]
[null,"Trà Vinh","Duyên Hải"]
[null,"Trà Vinh","Tiểu Cần"]
[null,"Trà Vinh","Trà Cú"]
[null,"Trà Vinh","Trà Vinh"]
[null,"Tuyên Quang","Chiêm Hóa"]
[null,"Tuyên Quang","Hàm Yên"]
[null,"Tuyên Quang","Lâm Bình"]
[null,"Tuyên Quang","Na Hang"]
[null,"Tuyên Quang","Sơn Dương"]
[null,"Tuyên Quang","Tuyên Quang"]
[null,"Tuyên Quang","Yên Sơn"]
[null,"Vĩnh Long","Bình Minh"]
[null,"Vĩnh Long","Bình Tân"]
[null,"Vĩnh Long","Long Hồ"]
[null,"Vĩnh Long","Mang Thít"]
[null,"Vĩnh Long","Tam Bình"]
[null,"Vĩnh Long","Trà Ôn"]
[null,"Vĩnh Long","Vĩnh Long"]
[null,"Vĩnh Long","Vũng Liêm"]
[null,"Vĩnh Phúc","Bình Xuyên"]
[null,"Vĩnh Phúc","Lập Thạch"]
[null,"Vĩnh Phúc","Phúc Yên"]
[null,"Vĩnh Phúc","Sông Lô"]
[null,"Vĩnh Phúc","Tam Đảo"]
[null,"Vĩnh Phúc","Tam Dương"]
[null,"Vĩnh Phúc","Vĩnh Tường"]
[null,"Vĩnh Phúc","Vĩnh Yên"]
[null,"Vĩnh Phúc","Yên Lạc"]
[null,"Yên Bái","Lục Yên"]
[null,"Yên Bái","Mù Căng Chải"]
[null,"Yên Bái","Nghĩa Lộ"]
[null,"Yên Bái","Trạm Tấu"]
[null,"Yên Bái","Trấn Yên"]
[null,"Yên Bái","Văn Chấn"]
[null,"Yên Bái","Văn Yên"]
[null,"Yên Bái","Yên Bái"]
[null,"Yên Bái","Yên Bình"]

{"sheet":"deleteRecord","index":7,"n_rows":1,"n_cols":2,"rows_kept":1,"cut":false,"hidden":true,"merged":[]}
["id","table"]

{"sheet":"tempVisit","index":8,"n_rows":8,"n_cols":7,"rows_kept":8,"cut":false,"hidden":true,"merged":[]}
["idVisit","Mã số KH","Họ tên","Giới tính","Ngày đến khám trước","Ngày hẹn đến khám","Tình trạng"]
[32,"HNO-01-0295","Vũ Thị Hồng Nh","Female","2012-12-20","2013-10-24","Late 140 day (s)"]
[101,"HNO-01-0435","Trần Chí B","Female","2013-12-12","2014-01-09","Late 63 day (s)"]
[166,"HNO-01-0609","Cao Văn Hưng","Male","2014-01-02","2014-02-28","Late 13 day (s)"]
[200,"HNO-01-0625","Hà Thu G","Female","2013-12-12","2014-01-09","Late 63 day (s)"]
[208,"HNO-01-0964","Bùi Thị A","Female","2011-12-01","2011-12-15","Late 819 day (s)"]
[240,"HNO-01-0965","Trần Công B","Male","2014-01-09","2014-06-03","Early 82 day (s)"]
[251,"HNO-01-0966","Đỗ Xuân C","Male","2012-10-09","2012-11-09","Late 489 day (s)"]

{"sheet":"tempVisit1","index":9,"n_rows":1,"n_cols":4,"rows_kept":1,"cut":false,"hidden":true,"merged":[]}
["id","Ngày hẹn khám","Ngày đến khám","Tình trạng"]

{"sheet":"tempCLS","index":10,"n_rows":1,"n_cols":11,"rows_kept":1,"cut":false,"hidden":true,"merged":[]}
["Mã số KH","Tên xét nghiệm/chẩn đoán","Ngày thực hiện","Ngày thực hiện lại","KQ định tính","KQ định lượng","idCLS","codeCLS","idDTResult","idVisit","status"]

{"sheet":"tempReferal","index":11,"n_rows":1,"n_cols":13,"rows_kept":1,"cut":false,"hidden":false,"merged":[]}
["Mã số KH","Dịch vụ chuyển gửi","Ngày giới thiệu","Nơi chuyển gửi","Tỉnh/thành phố","Tên cơ sở chuyển gửi","Nhận dịch vụ","Ngày nhận dịch vụ","Ghi chú","idService","idGetService","idReferal","status"]

{"sheet":"tempTreatment","index":12,"n_rows":1,"n_cols":11,"rows_kept":1,"cut":false,"hidden":true,"merged":[]}
["Mã số KH","Điều trị","Phác đồ (nếu có)","Ngày bắt đầu","Ngày kết thúc","Lý do kết thúc (nếu có)","codeTreatment","codePhacdo","codeLydo","idTreatment","status"]

{"sheet":"tempEvent","index":13,"n_rows":12,"n_cols":2,"rows_kept":12,"cut":false,"hidden":true,"merged":[]}
["Sự kiện","Ngày"]
["Khẳng định HIV"]
["Đăng ký chăm sóc tại PKNT"]
["Chuyển đến PKNT"]
["Đủ tiêu chuẩn lâm sàng & xét nghiệm"]
["Sẵn sàng tuân thủ điều trị"]
["Được xét chọn"]
["Bắt đầu điều trị ARV"]
["Bắt đầu nhận thuốc ARV"]
["Chuyển đi khỏi PKNT"]
["Tử vong"]
["Sự kiện","Ngày"]

{"sheet":"tempPatient","index":14,"n_rows":1,"n_cols":4,"rows_kept":1,"cut":false,"hidden":true,"merged":[]}
["Mã số KH","Họ tên","Giới tính","Tình trạng"]

{"sheet":"tempReport","index":15,"n_rows":1,"n_cols":5,"rows_kept":1,"cut":false,"hidden":true,"merged":[]}
["clientID","gender","Age","TB","date"]

{"sheet":"visit","index":16,"n_rows":252,"n_cols":32,"rows_kept":252,"cut":false,"hidden":true,"merged":[]}
["id","Mã khách hàng","Ngày đến khám","Tình trạng","Lý do","Ngày hẹn tái khám","Tuân thủ","DV_TB","thuốc tại xã","cân nặng","chiều cao","vận động","gdLS","mang thai","ngày mang thai","dự kiến sinh","Nổi mẩn","Vàng da","Nôn, buồn nôn","Tiêu chảy","Ngộ độc thuốc","Mắc lao tiến triển","Đau bụng","Đau đầu","Nóng rát/Tê cứng","Thiếu máu","Thay đổi phân bố mỡ","Hoa mắt, lo lắng, ác mộng","Trầm cảm","note LS","hẹn khám trước","Status"]
[1,"HNO-01-0295","2008-10-30",null,null,"2008-11-28",null,false,false,null,null,null,null,false,null,null,false,false,false,false,false,false,false,false,false,false,false,false,false,null,null,1]
[2,"HNO-01-0295","2008-11-13",3,null,"2008-11-27",null,false,false,null,null,null,null,false,null,null,false,false,false,false,false,false,false,false,false,false,false,false,false,null,"########",1]
[3,"HNO-01-0295","2010-04-01",null,null,"2010-08-18",null,false,false,null,null,null,null,false,null,null,false,false,false,false,false,false,false,false,false,false,false,false,false,null,null,1]
[4,"HNO-01-0295","2011-04-28",3,null,"2011-08-16",null,false,false,57,null,1,2,false,null,null,false,false,false,false,false,false,false,false,false,false,false,false,false,null,"2010-04-01",1]
[5,"HNO-01-0295","2011-08-16",3,null,"2011-10-06",null,false,false,57,null,1,2,false,null,null,false,false,false,false,false,false,false,false,false,false,false,false,false,null,"########",1]
[6,"HNO-01-0295","2011-10-06",null,null,"2011-10-13",null,true,false,57,null,1,2,false,null,null,false,false,false,false,false,false,false,false,false,false,false,false,false,null,null,1]
[7,"HNO-01-0295","2011-10-13",null,null,"2011-10-20",1,false,false,null,null,1,2,false,null,null,false,false,false,false,false,false,false,false,false,false,false,false,false,null,null,1]
[8,"HNO-01-0295","2011-10-20",null,null,"2011-10-27",1,false,false,null,null,1,2,false,null,null,false,false,false,false,false,false,false,false,false,false,false,false,false,null,null,1]
[9,"HNO-01-0295","2011-10-26",null,null,"2011-11-03",null,false,false,null,null,1,2,false,null,null,false,false,false,false,false,false,false,false,false,false,false,false,false,null,null,1]
[10,"HNO-01-0295","2011-11-03",null,null,"2011-11-17",1,true,false,57,null,null,null,false,null,null,false,false,false,false,false,false,false,false,false,false,false,false,false,null,null,1]
[11,"HNO-01-0295","2011-11-17",null,null,"2011-12-01",1,false,false,null,null,1,2,false,null,null,false,false,false,false,false,false,false,false,false,false,false,false,false,null,null,1]
[12,"HNO-01-0295","2011-12-01",null,null,"2011-12-29",1,true,false,58,null,1,2,false,null,null,false,false,false,false,false,false,false,false,false,false,false,false,false,null,null,1]
[13,"HNO-01-0295","2011-12-29",null,null,"2012-01-19",1,true,false,58,null,1,2,false,null,null,false,false,false,false,false,false,false,false,false,false,false,false,false,null,null,1]
[14,"HNO-01-0295","2012-01-19",null,null,"2012-02-16",1,true,false,58,null,1,2,false,null,null,false,false,false,false,false,false,false,false,false,false,false,false,false,null,null,1]
[15,"HNO-01-0295","2012-02-13",null,null,"2012-03-15",1,true,false,59,null,1,2,false,null,null,false,false,false,false,false,false,false,false,false,false,false,false,false,null,null,1]
[16,"HNO-01-0295","2012-03-15",null,null,"2012-04-12",null,false,false,null,null,null,null,false,null,null,false,false,false,false,false,false,false,false,false,false,false,false,false,null,null,1]
[17,"HNO-01-0295","2012-04-12",null,null,"2012-05-10",1,true,false,58,null,1,2,false,null,null,false,false,false,false,false,false,false,false,false,false,false,false,false,null,null,1]
[18,"HNO-01-0295","2012-05-10",null,null,"2012-06-07",null,false,false,null,null,null,null,false,null,null,false,false,false,false,false,false,false,false,false,false,false,false,false,null,null,1]
[19,"HNO-01-0295","2012-05-31",null,null,"2012-07-05",null,false,false,null,null,null,null,false,null,null,false,false,false,false,false,false,false,false,false,false,false,false,false,null,null,1]
[20,"HNO-01-0295","2012-07-04",null,null,"2012-08-02",1,true,false,58,null,null,null,false,null,null,false,false,false,false,false,false,false,false,false,false,false,false,false,null,null,1]
[21,"HNO-01-0295","2012-08-02",null,null,"2012-08-30",1,true,false,58,null,1,2,false,null,null,false,false,false,false,false,false,false,false,false,false,false,false,false,null,null,1]
[22,"HNO-01-0295","2012-08-28",null,null,"2012-09-27",null,false,false,null,null,null,null,false,null,null,false,false,false,false,false,false,false,false,false,false,false,false,false,null,null,1]
[23,"HNO-01-0295","2012-09-26",null,null,"2012-10-25",null,false,false,null,null,null,null,false,null,null,false,false,false,false,false,false,false,false,false,false,false,false,false,null,null,1]
[24,"HNO-01-0295","2012-10-25",3,null,"2012-11-22",1,true,false,58,null,1,2,false,null,null,false,false,false,false,false,false,false,false,false,false,false,false,false,null,"########",1]
[25,"HNO-01-0295","2012-11-22",null,null,"2012-12-20",null,false,false,null,null,null,null,false,null,null,false,false,false,false,false,false,false,false,false,false,false,false,false,null,null,1]
[26,"HNO-01-0295","2012-12-20",null,null,"2013-10-24",null,false,false,null,null,null,null,false,null,null,false,false,false,false,false,false,false,false,false,false,false,false,false,null,null,1]
[27,"HNO-01-0295","2013-10-24",null,null,"2013-11-22",null,false,false,null,null,null,null,false,null,null,false,false,false,false,false,false,false,false,false,false,false,false,false,null,null,1]
[28,"HNO-01-0295","2012-12-20",3,null,"2013-10-24",null,false,false,null,null,null,null,false,null,null,false,false,false,false,false,false,false,false,false,false,false,false,false,null,"########",1]
[29,"HNO-01-0295","2013-10-24",null,null,"2013-11-22",null,false,false,null,null,null,null,false,null,null,false,false,false,false,false,false,false,false,false,false,false,false,false,null,null,1]
[30,"HNO-01-0295","2013-11-22",null,null,"2013-12-20",1,true,false,59,null,1,2,false,null,null,false,false,false,false,false,false,false,false,false,false,false,false,false,null,null,1]
[31,"HNO-01-0295","2013-12-19",null,null,"2014-01-16",null,false,false,null,null,null,null,false,null,null,false,false,false,false,false,false,false,false,false,false,false,false,false,null,null,1]
[32,"HNO-01-0295","2012-12-20",3,null,"2013-10-24",null,false,false,null,null,null,null,false,null,null,false,false,false,false,false,false,false,false,false,false,false,false,false,null,"########",0]
[33,"HNO-01-0435","2009-03-04",null,null,"2009-04-01",null,true,false,null,null,null,null,false,null,null,false,false,false,false,false,false,false,false,false,false,false,false,false,null,null,1]
[34,"HNO-01-0435","2009-03-13",3,null,"2009-04-10",null,false,false,null,null,null,null,false,null,null,false,false,false,false,false,false,false,false,false,false,false,false,false,null,"2009-03-04",1]
[35,"HNO-01-0435","2009-03-26",3,null,"2009-04-13",null,false,false,null,null,null,null,false,null,null,false,false,false,false,false,false,false,false,false,false,false,false,false,null,"########",1]
[36,"HNO-01-0435","2009-04-13",null,null,"2009-05-11",null,false,false,58,null,1,3,false,null,null,false,false,false,false,false,false,false,false,false,false,false,false,false,null,null,1]
[37,"HNO-01-0435","2009-04-21",3,null,"2009-04-28",null,false,false,59,null,1,3,false,null,null,false,false,false,false,false,false,false,false,false,false,false,false,false,null,"########",1]
[38,"HNO-01-0435","2009-04-28",3,null,"2009-05-05",1,false,false,59,null,1,3,false,null,null,false,false,false,false,false,false,false,false,false,false,false,false,false,null,"########",1]
[39,"HNO-01-0435","2009-05-05",3,null,"2009-05-12",1,false,false,62,null,1,3,false,null,null,false,false,false,false,false,false,false,false,false,false,false,false,false,null,"########",1]
[40,"HNO-01-0435","2009-05-12",3,null,"2009-05-19",1,false,false,62,null,1,3,false,null,null,false,false,false,false,false,false,false,false,false,false,false,false,false,null,"2009-05-05",1]
[41,"HNO-01-0435","2009-05-14",3,null,"2009-06-21",1,false,false,62,null,1,3,false,null,null,false,false,false,false,false,false,false,false,false,false,false,false,false,null,"########",1]
[42,"HNO-01-0435","2009-06-21",3,null,"2009-06-26",1,false,false,null,null,1,3,false,null,null,false,false,false,false,false,false,false,false,false,false,false,false,false,null,"########",1]
[43,"HNO-01-0435","2009-06-26",3,null,"2009-07-14",1,false,false,59,null,1,3,false,null,null,false,false,false,false,false,false,false,false,false,false,false,false,false,null,"########",1]
[44,"HNO-01-0435","2009-07-14",3,null,"2009-08-11",1,false,false,58,null,1,3,false,null,null,false,false,false,false,false,false,false,false,false,false,false,false,false,null,"########",1]
[45,"HNO-01-0435","2009-08-11",3,null,"2009-09-08",1,false,false,57,null,1,3,false,null,null,false,false,false,false,false,false,false,false,false,false,false,false,false,null,"########",1]
[46,"HNO-01-0435","2009-09-08",3,null,"2009-10-06",1,false,false,59,null,1,3,false,null,null,false,false,false,false,false,false,false,false,false,false,false,false,false,null,"########",1]
[47,"HNO-01-0435","2009-10-06",3,null,"2009-11-03",null,false,false,59,null,1,3,false,null,null,false,false,false,false,false,false,false,false,false,false,false,false,false,null,"2009-09-08",1]
[48,"HNO-01-0435","2009-11-03",3,null,"2009-12-01",1,false,false,59,null,1,3,false,null,null,false,false,false,false,false,false,false,false,false,false,false,false,false,null,"########",1]
[49,"HNO-01-0435","2009-12-01",3,null,"2009-12-29",1,false,false,58,null,1,3,false,null,null,false,false,false,false,false,false,false,false,false,false,false,false,false,null,"########",1]
[50,"HNO-01-0435","2009-12-30",3,null,"2010-01-26",1,false,false,60,null,1,3,false,null,null,false,false,false,false,false,false,false,false,false,false,false,false,false,null,"########",1]
[51,"HNO-01-0435","2010-01-26",3,null,"2010-02-23",null,false,false,60,null,1,3,false,null,null,false,false,false,false,false,false,false,false,false,false,false,false,false,null,"########",1]
[52,"HNO-01-0435","2010-02-23",3,null,"2010-03-23",1,false,false,60,null,1,3,false,null,null,false,false,false,false,false,false,false,false,false,false,false,false,false,null,"########",1]
[53,"HNO-01-0435","2010-03-23",3,null,"2010-04-20",1,false,false,null,null,1,3,false,null,null,false,false,false,false,false,false,false,false,false,false,false,false,false,null,"########",1]
[54,"HNO-01-0435","2010-04-20",3,null,"2010-05-18",1,false,false,60.1,null,1,3,false,null,null,false,false,false,false,false,false,false,false,false,false,false,false,false,null,"########",1]
[55,"HNO-01-0435","2010-05-18",3,null,"2010-06-15",1,false,false,60.1,null,1,3,false,null,null,false,false,false,false,false,false,false,false,false,false,false,false,false,null,"########",1]
[56,"HNO-01-0435","2010-06-09",3,null,"2010-07-13",null,false,false,60.1,null,1,3,false,null,null,false,false,false,false,false,false,false,false,false,false,false,false,false,null,"########",1]
[57,"HNO-01-0435","2010-07-13",3,null,"2010-08-10",1,false,false,62,null,1,3,false,null,null,false,false,false,false,false,false,false,false,false,false,false,false,false,null,"2010-06-09",1]
[58,"HNO-01-0435","2010-08-10",3,null,"2010-09-07",1,false,false,62,null,1,3,false,null,null,false,false,false,false,false,false,false,false,false,false,false,false,false,null,"########",1]
[59,"HNO-01-0435","2010-09-07",3,null,"2010-10-05",1,false,false,61,null,1,3,false,null,null,false,false,false,false,false,false,false,false,false,false,false,false,false,null,"########",1]
[60,"HNO-01-0435","2010-10-05",3,null,"2010-11-02",1,false,false,61,null,1,3,false,null,null,false,false,false,false,false,false,false,false,false,false,false,false,false,null,"2010-09-07",1]
[61,"HNO-01-0435","2010-11-02",3,null,"2010-11-30",1,false,false,61,null,1,3,false,null,null,false,false,false,false,false,false,false,false,false,false,false,false,false,null,"########",1]
[62,"HNO-01-0435","2010-11-30",3,null,"2010-12-28",1,false,false,62,null,1,3,false,null,null,false,false,false,false,false,false,false,false,false,false,false,false,false,null,"########",1]
[63,"HNO-01-0435","2010-12-28",3,null,"2011-01-25",1,false,false,62,null,1,3,false,null,null,false,false,false,false,false,false,false,false,false,false,false,false,false,null,"########",1]
[64,"HNO-01-0435","2011-01-25",3,null,"2011-02-22",1,false,false,62,null,1,3,false,null,null,false,false,false,false,false,false,false,false,false,false,false,false,false,null,"########",1]
[65,"HNO-01-0435","2011-02-22",3,null,"2011-03-22",1,false,false,62,null,1,3,false,null,null,false,false,false,false,false,false,false,false,false,false,false,false,false,null,"########",1]
[66,"HNO-01-0435","2011-03-22",3,null,"2011-04-19",1,false,false,62,null,1,3,false,null,null,false,false,false,false,false,false,false,false,false,false,false,false,false,null,"########",1]
[67,"HNO-01-0435","2011-04-19",3,null,"2011-05-17",1,false,false,62,null,1,3,false,null,null,false,false,false,false,false,false,false,false,false,false,false,false,false,null,"########",1]
[68,"HNO-01-0435","2011-05-17",3,null,"2011-06-14",1,false,false,62,null,1,3,false,null,null,false,false,false,false,false,false,false,false,false,false,false,false,false,null,"########",1]
[69,"HNO-01-0435","2011-06-14",3,null,"2011-07-12",null,false,false,61,null,1,3,false,null,null,false,false,false,false,false,false,false,false,false,false,false,false,false,null,"########",1]
[70,"HNO-01-0435","2011-07-12",3,null,"2011-08-09",1,false,false,61,null,1,3,false,null,null,false,false,false,false,false,false,false,false,false,false,false,false,false,null,"########",1]
[71,"HNO-01-0435","2011-08-09",3,null,"2011-09-06",1,false,false,63,null,1,3,false,null,null,false,false,false,false,false,false,false,false,false,false,false,false,false,null,"########",1]
[72,"HNO-01-0435","2011-09-06",3,null,"2011-10-04",1,false,false,62,null,1,3,false,null,null,false,false,false,false,false,false,false,false,false,false,false,false,false,null,"2011-08-09",1]
[73,"HNO-01-0435","2011-10-04",3,null,"2011-11-01",1,true,false,62,null,1,3,false,null,null,false,false,false,false,false,false,false,false,false,false,false,false,false,null,"2011-09-06",1]
[74,"HNO-01-0435","2011-11-01",3,null,"2011-11-29",1,true,false,63,null,1,3,false,null,null,false,false,false,false,false,false,false,false,false,false,false,false,false,null,"########",1]
[75,"HNO-01-0435","2011-11-29",3,null,"2011-12-27",1,true,false,64,null,1,3,false,null,null,false,false,false,false,false,false,false,false,false,false,false,false,false,null,"########",1]
[76,"HNO-01-0435","2011-12-27",3,null,"2012-01-17",1,true,false,63,null,1,3,false,null,null,false,false,false,false,false,false,false,false,false,false,false,false,false,null,"########",1]
[77,"HNO-01-0435","2012-01-17",3,null,"2012-02-14",1,true,false,63,null,1,3,false,null,null,false,false,false,false,false,false,false,false,false,false,false,false,false,null,"########",1]
[78,"HNO-01-0435","2012-02-14",3,null,"2012-03-20",1,true,false,63,null,1,3,false,null,null,false,false,false,false,false,false,false,false,false,false,false,false,false,null,"########",1]
[79,"HNO-01-0435","2012-03-09",3,null,"2012-04-17",null,true,false,63.5,null,1,3,false,null,null,false,false,false,false,false,false,false,false,false,false,false,false,false,null,"########",1]
[80,"HNO-01-0435","2012-04-17",3,null,"2012-05-15",1,true,false,63,null,1,3,false,null,null,false,false,false,false,false,false,false,false,false,false,false,false,false,null,"2012-03-09",1]
[81,"HNO-01-0435","2012-05-16",3,null,"2012-06-12",null,true,false,null,null,1,3,false,null,null,false,false,false,false,false,false,false,false,false,false,false,false,false,null,"########",1]
[82,"HNO-01-0435","2012-06-12",3,null,"2012-07-10",1,true,false,null,null,1,3,false,null,null,false,false,false,false,false,false,false,false,false,false,false,false,false,null,"########",1]
[83,"HNO-01-0435","2012-07-05",3,null,"2012-08-07",1,true,false,62,null,1,3,false,null,null,false,false,false,false,false,false,false,false,false,false,false,false,false,null,"########",1]
[84,"HNO-01-0435","2012-08-07",3,null,"2012-09-04",1,true,false,62,null,1,3,false,null,null,false,false,false,false,false,false,false,false,false,false,false,false,false,null,"2012-07-05",1]
[85,"HNO-01-0435","2012-09-04",3,null,"2012-10-02",1,true,false,62,null,1,3,false,null,null,false,false,false,false,false,false,false,false,false,false,false,false,false,null,"2012-08-07",1]
[86,"HNO-01-0435","2012-10-02",3,null,"2012-10-30",null,false,false,63,null,1,3,false,null,null,false,false,false,false,false,false,false,false,false,false,false,false,false,null,"2012-09-04",1]
[87,"HNO-01-0435","2012-10-30",3,null,"2012-11-27",null,false,false,63,null,1,3,false,null,null,false,false,false,false,false,false,false,false,false,false,false,false,false,null,"########",1]
[88,"HNO-01-0435","2012-11-27",3,null,"2012-12-25",1,true,false,62,null,1,3,false,null,null,false,false,false,false,false,false,false,false,false,false,false,false,false,null,"########",1]
[89,"HNO-01-0435","2012-12-13",3,null,"2013-01-22",1,true,false,62,null,1,3,false,null,null,false,false,false,false,false,false,false,false,false,false,false,false,false,null,"########",1]
[90,"HNO-01-0435","2013-01-22",3,null,"2013-03-08",null,true,false,62,null,1,3,false,null,null,false,false,false,false,false,false,false,false,false,false,false,false,false,null,"########",1]
[91,"HNO-01-0435","2013-03-08",3,null,"2013-03-19",null,false,false,62,null,1,3,false,null,null,false,false,false,false,false,false,false,false,false,false,false,false,false,null,"########",1]
[92,"HNO-01-0435","2013-04-04",3,null,"2013-05-02",1,true,false,62,null,1,2,false,null,null,false,false,false,false,false,false,false,false,false,false,false,false,false,null,"2013-03-08",1]
[93,"HNO-01-0435","2013-05-02",3,null,"2013-05-30",1,true,false,63,null,1,2,false,null,null,false,false,false,false,false,false,false,false,false,false,false,false,false,null,"2013-04-04",1]
[94,"HNO-01-0435","2013-05-30",3,null,"2013-06-27",null,false,false,63,null,1,2,false,null,null,false,false,false,false,false,false,false,false,false,false,false,false,false,null,"2013-05-02",1]
[95,"HNO-01-0435","2013-06-27",3,null,"2013-07-25",1,true,false,63,null,1,2,false,null,null,false,false,false,false,false,false,false,false,false,false,false,false,false,null,"########",1]
[96,"HNO-01-0435","2013-07-25",3,null,"2013-08-22",1,true,false,63,null,1,2,false,null,null,false,false,false,false,false,false,false,false,false,false,false,false,false,null,"########",1]
[97,"HNO-01-0435","2013-08-22",3,null,"2013-09-19",1,true,false,63,null,1,2,false,null,null,false,false,false,false,false,false,false,false,false,false,false,false,false,null,"########",1]
[98,"HNO-01-0435","2013-09-19",3,null,"2013-10-17",1,true,false,63,null,1,2,false,null,null,false,false,false,false,false,false,false,false,false,false,false,false,false,null,"########",1]
[99,"HNO-01-0435","2013-10-02",3,null,"2013-11-14",1,true,false,63,null,1,2,false,null,null,false,false,false,false,false,false,false,false,false,false,false,false,false,null,"########",1]
[100,"HNO-01-0435","2013-11-14",3,null,"2013-12-12",1,true,false,63,null,1,2,false,null,null,false,false,false,false,false,false,false,false,false,false,false,false,false,null,"########",1]
[101,"HNO-01-0435","2013-12-12",3,null,"2014-01-09",1,true,false,63,null,1,2,false,null,null,false,false,false,false,false,false,false,false,false,false,false,false,false,null,"########",0]
[102,"HNO-01-0435","2009-12-03",2,null,"2010-01-20",null,false,false,63,null,1,2,false,null,null,false,false,false,false,false,false,false,false,false,false,false,false,false,null,"########",1]
[103,"HNO-01-0609","2009-09-28",null,null,"2009-10-26",null,false,false,52,null,1,3,false,null,null,false,false,false,false,false,false,false,false,false,false,false,false,false,null,null,1]
[104,"HNO-01-0609","2009-10-26",3,null,"2009-10-30",null,false,false,52,null,1,3,false,null,null,false,false,false,false,false,false,false,false,false,false,false,false,false,null,"########",1]
[105,"HNO-01-0609","2009-10-30",3,null,"2009-11-21",null,false,false,52,null,1,3,false,null,null,false,false,false,false,false,false,false,false,false,false,false,false,false,null,"########",1]
[106,"HNO-01-0609","2009-11-02",3,null,"2009-11-03",null,false,false,52,null,1,3,false,null,null,false,false,false,false,false,false,false,false,false,false,false,false,false,null,"########",1]
[107,"HNO-01-0609","2009-11-10",3,null,"2009-11-17",1,false,false,52.5,null,1,3,false,null,null,false,false,false,false,false,false,false,false,false,false,false,false,false,null,"########",1]
[108,"HNO-01-0609","2009-11-17",3,null,"2009-11-27",null,false,false,52.5,null,1,3,false,null,null,false,false,false,false,false,false,false,false,false,false,false,false,false,null,"########",1]
[109,"HNO-01-0609","2009-11-27",3,null,"2009-12-04",1,false,false,52.5,null,1,3,false,null,null,false,false,false,false,false,false,false,false,false,false,false,false,false,null,"########",1]
[110,"HNO-01-0609","2009-12-07",3,null,"2009-12-18",1,false,false,55,null,1,3,false,null,null,false,false,false,false,false,false,false,false,false,false,false,false,false,null,"########",1]
[111,"HNO-01-0609","2009-12-18",3,null,"2010-01-08",1,false,false,55,null,1,3,false,null,null,false,false,false,false,false,false,false,false,false,false,false,false,false,null,"########",1]
[112,"HNO-01-0609","2010-01-08",3,null,"2010-02-05",1,false,false,55,null,1,3,false,null,null,false,false,false,false,false,false,false,false,false,false,false,false,false,null,"########",1]
[113,"HNO-01-0609","2010-02-05",3,null,"2010-03-05",1,false,false,55,null,1,3,false,null,null,false,false,false,false,false,false,false,false,false,false,false,false,false,null,"2010-01-08",1]
[114,"HNO-01-0609","2010-03-05",3,null,"2010-04-02",null,false,false,55,null,1,3,false,null,null,false,false,false,false,false,false,false,false,false,false,false,false,false,null,"2010-02-05",1]
[115,"HNO-01-0609","2010-04-02",3,null,"2010-04-29",1,false,false,55,null,1,3,false,null,null,false,false,false,false,false,false,false,false,false,false,false,false,false,null,"2010-03-05",1]
[116,"HNO-01-0609","2010-05-04",3,null,"2010-05-28",3,false,false,55,null,1,2,false,null,null,false,false,false,false,false,false,false,false,false,false,false,false,false,null,"2010-04-02",1]
[117,"HNO-01-0609","2010-05-28",3,null,"2010-06-25",null,false,false,55,null,1,2,false,null,null,false,false,false,false,false,false,false,false,false,false,false,false,false,null,"2010-05-04",1]
[118,"HNO-01-0609","2010-06-28",3,null,"2010-07-23",3,false,false,55,null,1,2,false,null,null,false,false,false,false,false,false,false,false,false,false,false,false,false,null,"########",1]
[119,"HNO-01-0609","2010-07-23",3,null,"2010-08-20",1,false,false,55,null,1,2,false,null,null,false,false,false,false,false,false,false,false,false,false,false,false,false,null,"########",1]
[120,"HNO-01-0609","2010-08-20",3,null,"2010-09-17",null,false,false,55,null,1,2,false,null,null,false,false,false,false,false,false,false,false,false,false,false,false,false,null,"########",1]
[121,"HNO-01-0609","2010-09-17",3,null,"2010-10-01",null,false,false,55,null,1,2,false,null,null,false,false,false,false,false,false,false,false,false,false,false,false,false,null,"########",1]
[122,"HNO-01-0609","2010-10-01",3,null,"2010-10-15",1,false,false,55,null,1,2,false,null,null,false,false,false,false,false,false,false,false,false,false,false,false,false,null,"########",1]
[123,"HNO-01-0609","2010-10-15",3,null,"2010-11-12",1,false,false,54,null,1,2,false,null,null,false,false,false,false,false,false,false,false,false,false,false,false,false,null,"########",1]
[124,"HNO-01-0609","2010-11-12",3,null,"2010-12-10",1,false,false,54,null,1,2,false,null,null,false,false,false,false,false,false,false,false,false,false,false,false,false,null,"########",1]
[125,"HNO-01-0609","2010-12-10",3,null,"2011-01-07",1,false,false,60,null,1,2,false,null,null,false,false,false,false,false,false,false,false,false,false,false,false,false,null,"########",1]
[126,"HNO-01-0609","2011-01-07",3,null,"2011-02-11",1,false,false,60,null,1,2,false,null,null,false,false,false,false,false,false,false,false,false,false,false,false,false,null,"########",1]
[127,"HNO-01-0609","2011-02-11",3,null,"2011-03-04",1,false,false,60,null,1,2,false,null,null,false,false,false,false,false,false,false,false,false,false,false,false,false,null,"2011-01-07",1]
[128,"HNO-01-0609","2011-03-04",3,null,"2011-04-01",1,false,false,60,null,1,2,false,null,null,false,false,false,false,false,false,false,false,false,false,false,false,false,null,"########",1]
[129,"HNO-01-0609","2011-04-01",3,null,"2011-04-29",null,false,false,60,null,1,2,false,null,null,false,false,false,false,false,false,false,false,false,false,false,false,false,null,"2011-03-04",1]
[130,"HNO-01-0609","2011-05-04",3,null,"2011-05-27",null,false,false,59.5,null,1,2,false,null,null,false,false,false,false,false,false,false,false,false,false,false,false,false,null,"2011-04-01",1]
[131,"HNO-01-0609","2011-05-26",3,null,"2011-06-24",null,false,false,58,null,1,2,false,null,null,false,false,false,false,false,false,false,false,false,false,false,false,false,null,"2011-05-04",1]
[132,"HNO-01-0609","2011-06-24",3,null,"2011-07-11",3,false,false,58,null,1,2,false,null,null,false,false,false,false,false,false,false,false,false,false,false,false,false,null,"########",1]
[133,"HNO-01-0609","2011-07-11",3,null,"2011-07-22",null,false,false,58,173,1,2,false,null,null,false,false,false,false,false,false,false,false,false,false,false,false,false,null,"########",1]
[134,"HNO-01-0609","2011-07-22",3,null,"2011-08-19",1,false,false,58,173,1,2,false,null,null,false,false,false,false,false,false,false,false,false,false,false,false,false,null,"########",1]
[135,"HNO-01-0609","2011-08-19",3,null,"2011-09-16",1,false,false,58,173,1,2,false,null,null,false,false,false,false,false,false,false,false,false,false,false,false,false,null,"########",1]
[136,"HNO-01-0609","2011-09-07",3,null,"2011-10-14",1,true,false,58,173,1,2,false,null,null,false,false,false,false,false,false,false,false,false,false,false,false,false,null,"########",1]
[137,"HNO-01-0609","2011-10-14",3,null,"2011-11-11",1,true,false,59,173,1,2,false,null,null,false,false,false,false,false,false,false,false,false,false,false,false,false,null,"2011-09-07",1]
[138,"HNO-01-0609","2011-11-11",3,null,"2011-12-09",3,true,false,59,173,1,2,false,null,null,false,false,false,false,false,false,false,false,false,false,false,false,false,null,"########",1]
[139,"HNO-01-0609","2011-12-09",3,null,"2012-01-06",null,true,false,59,173,1,2,false,null,null,false,false,false,false,false,false,false,false,false,false,false,false,false,null,"########",1]
[140,"HNO-01-0609","2012-01-09",3,null,"2012-02-03",3,false,false,60,173,1,2,false,null,null,false,false,false,false,false,false,false,false,false,false,false,false,false,null,"########",1]
[141,"HNO-01-0609","2012-02-03",3,null,"2012-03-02",1,true,false,60,173,1,2,false,null,null,false,false,false,false,false,false,false,false,false,false,false,false,false,null,"2012-01-09",1]
[142,"HNO-01-0609","2012-03-02",3,null,"2012-03-30",null,false,false,60,173,1,2,false,null,null,false,false,false,false,false,false,false,false,false,false,false,false,false,null,"2012-02-03",1]
[143,"HNO-01-0609","2012-04-09",3,null,"2012-04-27",3,true,false,60,173,1,2,false,null,null,false,false,false,false,false,false,false,false,false,false,false,false,false,null,"2012-03-02",1]
[144,"HNO-01-0609","2012-04-27",3,null,"2012-05-25",1,true,false,60,173,1,2,false,null,null,false,false,false,false,false,false,false,false,false,false,false,false,false,null,"2012-04-09",1]
[145,"HNO-01-0609","2012-05-25",3,null,"2012-06-22",1,true,false,60,173,1,2,false,null,null,false,false,false,false,false,false,false,false,false,false,false,false,false,null,"########",1]
[146,"HNO-01-0609","2012-06-22",3,null,"2012-07-20",1,true,false,61,173,1,2,false,null,null,false,false,false,false,false,false,false,false,false,false,false,false,false,null,"########",1]
[147,"HNO-01-0609","2012-07-20",3,null,"2012-08-17",1,true,false,62,173,1,2,false,null,null,false,false,false,false,false,false,false,false,false,false,false,false,false,null,"########",1]
[148,"HNO-01-0609","2012-08-17",3,null,"2012-09-14",1,true,false,62,173,1,2,false,null,null,false,false,false,false,false,false,false,false,false,false,false,false,false,null,"########",1]
[149,"HNO-01-0609","2012-09-14",3,null,"2012-10-12",1,true,false,62,173,1,2,false,null,null,false,false,false,false,false,false,false,false,false,false,false,false,false,null,"########",1]
[150,"HNO-01-0609","2012-10-15",3,null,"2012-11-09",3,true,false,62,173,1,2,false,null,null,false,false,false,false,false,false,false,false,false,false,false,false,false,null,"########",1]
[151,"HNO-01-0609","2012-11-15",3,null,"2012-12-07",3,true,false,62,173,1,2,false,null,null,false,false,false,false,false,false,false,false,false,false,false,false,false,null,"########",1]
[152,"HNO-01-0609","2012-12-06",3,null,"2013-01-04",1,true,false,59,173,1,2,false,null,null,false,false,false,false,false,false,false,false,false,false,false,false,false,null,"########",1]
[153,"HNO-01-0609","2013-01-04",3,null,"2013-02-01",null,false,false,59,173,1,2,false,null,null,false,false,false,false,false,false,false,false,false,false,false,false,false,null,"########",1]
[154,"HNO-01-0609","2013-02-01",3,null,"2013-03-01",null,false,false,59,173,1,2,false,null,null,false,false,false,false,false,false,false,false,false,false,false,false,false,null,"2013-01-04",1]
[155,"HNO-01-0609","2013-02-26",3,null,"2013-03-29",null,false,false,59,173,1,2,false,null,null,false,false,false,false,false,false,false,false,false,false,false,false,false,null,"2013-02-01",1]
[156,"HNO-01-0609","2013-03-28",3,null,"2013-04-26",null,false,false,59,173,1,2,false,null,null,false,false,false,false,false,false,false,false,false,false,false,false,false,null,"########",1]
[157,"HNO-01-0609","2013-05-02",3,null,"2013-05-24",null,false,false,59,173,1,2,false,null,null,false,false,false,false,false,false,false,false,false,false,false,false,false,null,"########",1]
[158,"HNO-01-0609","2013-05-23",3,null,"2013-06-21",null,false,false,59,173,1,2,false,null,null,false,false,false,false,false,false,false,false,false,false,false,false,false,null,"2013-05-02",1]
[159,"HNO-01-0609","2013-06-21",3,null,"2013-07-19",null,false,false,59,173,1,2,false,null,null,false,false,false,false,false,false,false,false,false,false,false,false,false,null,"########",1]
[160,"HNO-01-0609","2013-07-18",3,null,"2013-08-16",null,false,false,59,173,1,2,false,null,null,false,false,false,false,false,false,false,false,false,false,false,false,false,null,"########",1]
[161,"HNO-01-0609","2013-08-13",3,null,"2013-09-13",null,false,false,59,173,1,2,false,null,null,false,false,false,false,false,false,false,false,false,false,false,false,false,null,"########",1]
[162,"HNO-01-0609","2013-09-12",3,null,"2013-12-11",null,true,false,61,173,1,2,false,null,null,false,false,false,false,false,false,false,false,false,false,false,false,false,null,"########",1]
[163,"HNO-01-0609","2013-10-11",3,null,"2013-11-08",1,true,false,61,173,1,2,false,null,null,false,false,false,false,false,false,false,false,false,false,false,false,false,null,"########",1]
[164,"HNO-01-0609","2013-11-07",3,null,"2013-12-06",1,true,false,61,173,1,2,false,null,null,false,false,false,false,false,false,false,false,false,false,false,false,false,null,"########",1]
[165,"HNO-01-0609","2013-12-06",3,null,"2014-01-03",1,true,false,60,173,1,2,false,null,null,false,false,false,false,false,false,false,false,false,false,false,false,false,null,"########",1]
[166,"HNO-01-0609","2014-01-02",3,null,"2014-02-28",1,true,false,60,173,1,2,false,null,null,false,false,false,false,false,false,false,false,false,false,false,false,false,null,"########",0]
[167,"HNO-01-0609","2013-04-13",2,null,"2013-05-25",null,false,false,60,173,1,2,false,null,null,false,false,false,false,false,false,false,false,false,false,false,false,false,null,"2014-01-02",1]
[168,"HNO-01-0625","2009-10-13",null,null,"2010-02-03",null,false,false,46,null,1,2,false,null,null,false,false,false,false,false,false,false,false,false,false,false,false,false,null,null,1]
[169,"HNO-01-0625","2010-02-03",3,null,"2011-04-19",null,false,false,46,null,1,2,false,null,null,false,false,false,false,false,false,false,false,false,false,false,false,false,null,"########",1]
[170,"HNO-01-0625","2011-08-10",3,null,"2012-02-22",null,false,false,46,null,1,2,false,null,null,false,false,false,false,false,false,false,false,false,false,false,false,false,null,"2010-02-03",1]
[171,"HNO-01-0625","2012-02-22",3,null,"2012-03-26",null,false,false,46,null,1,2,false,null,null,false,false,false,false,false,false,false,false,false,false,false,false,false,null,"########",1]
[172,"HNO-01-0625","2012-03-26",3,null,"2012-04-04",null,false,false,46,null,1,2,false,null,null,false,false,false,false,false,false,false,false,false,false,false,false,false,null,"########",1]
[173,"HNO-01-0625","2012-04-04",3,null,"2012-04-11",1,true,false,46,null,1,2,false,null,null,false,false,false,false,false,false,false,false,false,false,false,false,false,null,"########",1]
[174,"HNO-01-0625","2012-04-11",3,null,"2012-04-18",1,false,false,46,null,1,2,false,null,null,false,false,false,false,false,false,false,false,false,false,false,false,false,null,"2012-04-04",1]
[175,"HNO-01-0625","2012-04-02",3,null,"2012-04-25",null,false,false,45,null,1,2,false,null,null,false,false,false,false,false,false,false,false,false,false,false,false,false,null,"########",1]
[176,"HNO-01-0625","2012-04-26",3,null,"2012-05-03",null,true,false,46,null,1,2,false,null,null,false,false,false,false,false,false,false,false,false,false,false,false,false,null,"2012-04-02",1]
[177,"HNO-01-0625","2012-05-03",3,null,"2012-05-10",1,true,false,46,null,1,2,false,null,null,false,false,false,false,false,false,false,false,false,false,false,false,false,null,"########",1]
[178,"HNO-01-0625","2012-05-10",3,null,"2012-05-17",null,true,false,46,null,1,2,false,null,null,false,false,false,false,false,false,false,false,false,false,false,false,false,null,"2012-05-03",1]
[179,"HNO-01-0625","2012-05-16",3,null,"2012-05-24",1,true,false,45,null,1,2,false,null,null,false,false,false,false,false,false,false,false,false,false,false,false,false,null,"########",1]
[180,"HNO-01-0625","2012-05-24",3,null,"2012-06-07",1,true,false,45,null,1,2,false,null,null,false,false,false,false,false,false,false,false,false,false,false,false,false,null,"########",1]
[181,"HNO-01-0625","2012-06-08",3,null,"2012-06-21",3,true,false,45,null,1,2,false,null,null,false,false,false,false,false,false,false,false,false,false,false,false,false,null,"########",1]
[182,"HNO-01-0625","2012-06-21",3,null,"2012-07-26",1,true,false,45,null,1,2,false,null,null,false,false,false,false,false,false,false,false,false,false,false,false,false,null,"2012-06-08",1]
[183,"HNO-01-0625","2012-07-26",3,null,"2012-08-23",1,true,false,45,null,1,2,false,null,null,false,false,false,false,false,false,false,false,false,false,false,false,false,null,"########",1]
[184,"HNO-01-0625","2012-08-23",3,null,"2012-09-20",1,true,false,45,null,1,2,false,null,null,false,false,false,false,false,false,false,false,false,false,false,false,false,null,"########",1]
[185,"HNO-01-0625","2012-09-20",3,null,"2012-10-18",null,false,false,46,null,1,2,false,null,null,false,false,false,false,false,false,false,false,false,false,false,false,false,null,"########",1]
[186,"HNO-01-0625","2012-10-18",3,null,"2012-11-15",1,true,false,46,null,1,2,false,null,null,false,false,false,false,false,false,false,false,false,false,false,false,false,null,"########",1]
[187,"HNO-01-0625","2012-11-15",3,null,"2012-12-13",1,true,false,46,null,1,2,false,null,null,false,false,false,false,false,false,false,false,false,false,false,false,false,null,"########",1]
[188,"HNO-01-0625","2012-12-13",3,null,"2013-01-10",1,true,false,46,null,1,2,false,null,null,false,false,false,false,false,false,false,false,false,false,false,false,false,null,"########",1]
[189,"HNO-01-0625","2013-01-10",3,null,"2013-03-08",null,false,false,46,null,1,2,false,null,null,false,false,false,false,false,false,false,false,false,false,false,false,false,null,"########",1]
[190,"HNO-01-0625","2013-03-08",3,null,"2013-04-04",null,false,false,46,null,1,2,false,null,null,false,false,false,false,false,false,false,false,false,false,false,false,false,null,"########",1]
[191,"HNO-01-0625","2013-04-04",3,null,"2013-05-02",1,true,false,46,null,1,2,false,null,null,false,false,false,false,false,false,false,false,false,false,false,false,false,null,"2013-03-08",1]
[192,"HNO-01-0625","2013-05-02",3,null,"2013-05-30",null,false,false,46,null,1,2,false,null,null,false,false,false,false,false,false,false,false,false,false,false,false,false,null,"2013-04-04",1]
[193,"HNO-01-0625","2013-05-30",3,null,"2013-06-27",1,true,false,46,null,1,2,false,null,null,false,false,false,false,false,false,false,false,false,false,false,false,false,null,"2013-05-02",1]
[194,"HNO-01-0625","2013-06-27",3,null,"2013-07-25",1,true,false,46,null,1,2,false,null,null,false,false,false,false,false,false,false,false,false,false,false,false,false,null,"########",1]
[195,"HNO-01-0625","2013-07-25",3,null,"2013-08-22",null,false,false,46,null,1,2,false,null,null,false,false,false,false,false,false,false,false,false,false,false,false,false,null,"########",1]
[196,"HNO-01-0625","2013-08-22",3,null,"2013-09-29",null,false,false,46,null,1,2,false,null,null,false,false,false,false,false,false,false,false,false,false,false,false,false,null,"########",1]
[197,"HNO-01-0625","2013-09-19",3,null,"2013-10-17",1,true,false,46,null,1,2,false,null,null,false,false,false,false,false,false,false,false,false,false,false,false,false,null,"########",1]
[198,"HNO-01-0625","2013-10-17",3,null,"2013-11-14",1,true,false,47,null,1,2,false,null,null,false,false,false,false,false,false,false,false,false,false,false,false,false,null,"########",1]
[199,"HNO-01-0625","2013-11-14",3,null,"2013-12-12",1,true,false,47,null,1,2,false,null,null,false,false,false,false,false,false,false,false,false,false,false,false,false,null,"########",1]
[200,"HNO-01-0625","2013-12-12",3,null,"2014-01-09",null,false,false,47,null,1,2,false,null,null,false,false,false,false,false,false,false,false,false,false,false,false,false,null,"########",0]
[201,"HNO-01-0964","2011-10-14",null,null,"2011-10-21",2,true,false,50,null,1,null,false,null,null,false,false,false,false,false,false,false,false,false,false,false,false,false,null,null,1]
[202,"HNO-01-0964","2011-10-21",3,null,"2011-10-28",1,false,false,50,null,1,null,false,null,null,false,false,false,false,false,false,false,false,false,false,false,false,false,null,"2011-10-14",1]
[203,"HNO-01-0964","2011-10-28",3,null,"2011-04-11",null,false,false,49,null,1,4,false,null,null,false,false,false,false,false,false,false,false,false,false,false,false,false,null,"2011-10-21",1]
[204,"HNO-01-0964","2011-11-04",3,null,"2011-11-11",1,true,false,49.5,null,1,4,false,null,null,false,false,false,false,false,false,false,false,false,false,false,false,false,null,"2011-10-28",1]
[205,"HNO-01-0964","2011-11-10",3,"Bận việc riêng","2011-11-17",1,true,false,51,null,1,4,false,null,null,false,false,false,false,false,false,false,false,false,false,false,false,false,null,"2011-11-04",1]
[206,"HNO-01-0964","2011-11-17",3,null,"2011-11-24",null,false,false,51,null,1,4,false,null,null,false,false,false,false,false,false,false,false,false,false,false,false,false,null,"2011-11-10",1]
[207,"HNO-01-0964","2011-11-24",3,null,"2011-01-12",1,false,false,51,null,1,3,false,null,null,false,false,false,false,false,false,false,false,false,false,false,false,false,null,"2011-11-17",1]
[208,"HNO-01-0964","2011-12-01",3,null,"2011-12-15",null,true,false,51,null,1,4,false,null,null,false,false,false,false,false,false,false,false,false,false,false,false,false,null,"2011-11-24",0]
[209,"HNO-01-0965","26/10/2011",null,null,"2011-10-11",null,true,false,60,180,1,2,false,null,null,false,false,false,false,false,false,false,false,false,false,false,false,false,null,null,1]
[210,"HNO-01-0965","2011-10-11",3,null,"17/11/2011",null,true,false,63,180,1,2,false,null,null,false,false,false,false,false,false,false,false,false,false,false,false,false,null,"26/10/2011",1]
[211,"HNO-01-0965","17/11/2011",3,null,"24/11/2011",1,false,false,63,180,1,2,false,null,null,false,false,false,false,false,false,false,false,false,false,false,false,false,null,"2011-11-10",1]
[212,"HNO-01-0965","22/12/2011",3,null,"29/12/2011",1,true,false,63,180,1,3,false,null,null,false,false,false,false,false,false,false,false,false,false,false,false,false,null,"17/11/2011",1]
[213,"HNO-01-0965","29/12/2011",3,null,"2012-05-01",1,true,false,63,180,1,3,false,null,null,false,false,false,false,false,false,false,false,false,false,false,false,false,null,"22/12/2011",1]
[214,"HNO-01-0965","2012-05-01",3,null,"2012-12-01",1,true,false,63,180,1,3,false,null,null,false,false,false,false,false,false,false,false,false,false,false,false,false,null,"29/12/2011",1]
[215,"HNO-01-0965","2012-12-01",3,null,"19/1/2012",1,true,false,63,180,1,3,false,null,null,false,false,false,false,false,false,false,false,false,false,false,false,false,null,"2012-01-05",1]
[216,"HNO-01-0965","19/1/2011",3,null,"2011-02-02",1,true,false,63,180,1,3,false,null,null,false,false,false,false,false,false,false,false,false,false,false,false,false,null,"2012-01-12",1]
[217,"HNO-01-0965","2011-02-02",3,null,"2011-09-02",2,true,false,63,180,1,3,false,null,null,false,false,false,false,false,false,false,false,false,false,false,false,false,null,"19/1/2011",1]
[218,"HNO-01-0965","28/2/2011",3,null,"2011-08-03",null,false,false,63,180,1,3,false,null,null,false,false,false,false,false,false,false,false,false,false,false,false,false,null,"2011-02-02",1]
[219,"HNO-01-0965","2011-07-03",3,null,"2011-05-04",null,false,false,63,180,1,3,false,null,null,false,false,false,false,false,false,false,false,false,false,false,false,false,null,"28/2/2011",1]
[220,"HNO-01-0965","2011-04-04",3,null,"2011-03-05",null,false,false,63,180,1,3,false,null,null,false,false,false,false,false,false,false,false,false,false,false,false,false,null,"2011-03-07",1]
[221,"HNO-01-0965","2011-03-05",3,null,"31/5/2011",null,false,false,63,180,1,3,false,null,null,false,false,false,false,false,false,false,false,false,false,false,false,false,null,"2011-04-04",1]
[222,"HNO-01-0965","31/5/2012",3,null,"26/6/2012",1,false,false,63,180,1,3,false,null,null,false,false,false,false,false,false,false,false,false,false,false,false,false,null,"2011-05-03",1]
[223,"HNO-01-0965","28/6/2012",3,null,"2012-05-07",null,false,false,63,180,1,3,false,null,null,false,false,false,false,false,false,false,false,false,false,false,false,false,null,"31/5/2012",1]
[224,"HNO-01-0965","27/9/2012",3,null,"25/10/2012",1,true,false,63,180,1,3,false,null,null,false,false,false,false,false,false,false,false,false,false,false,false,false,null,"28/6/2012",1]
[225,"HNO-01-0965","23/10/2012",3,null,"15/11/2012",1,true,false,63,180,1,3,false,null,null,false,false,false,false,false,false,false,false,false,false,false,false,false,null,"27/9/2012",1]
[226,"HNO-01-0965","14/11/2012",3,null,"13/12/2012",1,true,false,63,180,1,3,false,null,null,false,false,false,false,false,false,false,false,false,false,false,false,false,null,"23/10/2012",1]
[227,"HNO-01-0965","13/12/2012",3,null,"2013-10-01",1,true,false,62.5,180,1,3,false,null,null,false,false,false,false,false,false,false,false,false,false,false,false,false,null,"14/11/2012",1]
[228,"HNO-01-0965","2013-10-01",3,null,"2013-07-03",1,true,false,63,180,1,3,false,null,null,false,false,false,false,false,false,false,false,false,false,false,false,false,null,"13/12/2012",1]
[229,"HNO-01-0965","2013-03-07",3,null,"2013-04-04",1,true,false,63,180,1,3,false,null,null,false,false,false,false,false,false,false,false,false,false,false,false,false,null,"2013-10-01",1]
[230,"HNO-01-0965","2013-04-04",3,null,"2013-02-05",1,true,false,65,180,1,3,false,null,null,false,false,false,false,false,false,false,false,false,false,false,false,false,null,"2013-03-07",1]
[231,"HNO-01-0965","2013-05-02",1,null,"2013-05-30",1,true,false,65,180,1,3,false,null,null,false,false,false,false,false,false,false,false,false,false,false,false,false,null,"2013-04-04",1]
[232,"HNO-01-0965","2013-05-29",2,null,"2013-06-27",1,true,false,65,180,1,3,false,null,null,false,false,false,false,false,false,false,false,false,false,false,false,false,null,"2013-05-02",1]
[233,"HNO-01-0965","2013-06-27",1,null,"2013-07-25",1,true,false,64,180,1,3,false,null,null,false,false,false,false,false,false,false,false,false,false,false,false,false,null,"2013-05-29",1]
[234,"HNO-01-0965","2013-07-25",1,null,"2013-08-22",1,true,false,64,180,1,2,false,null,null,false,false,false,false,false,false,false,false,false,false,false,false,false,null,"2013-06-27",1]
[235,"HNO-01-0965","2013-08-22",1,null,"2013-09-19",1,true,false,64,180,1,2,false,null,null,false,false,false,false,false,false,false,false,false,false,false,false,false,null,"2013-07-25",1]
[236,"HNO-01-0965","2013-09-19",1,null,"2013-10-17",1,false,false,64,180,1,2,false,null,null,false,false,false,false,false,false,false,false,false,false,false,false,false,null,"2013-08-22",1]
[237,"HNO-01-0965","2013-10-17",1,null,"2013-11-14",1,true,false,64,180,1,2,false,null,null,false,false,false,false,false,false,false,false,false,false,false,false,false,null,"2013-09-19",1]
[238,"HNO-01-0965","2013-11-14",1,null,"2013-12-12",1,true,false,64,180,1,2,false,null,null,false,false,false,false,false,false,false,false,false,false,false,false,false,null,"2013-10-17",1]
[239,"HNO-01-0965","2013-12-12",1,null,"2014-01-09",1,true,false,64,180,1,2,false,null,null,false,false,false,false,false,false,false,false,false,false,false,false,false,null,"2013-11-14",1]
[240,"HNO-01-0965","2014-01-09",1,null,"2014-06-03",1,true,false,64,180,1,2,false,null,null,false,false,false,false,false,false,false,false,false,false,false,false,false,null,"2013-12-12",0]
[241,"HNO-01-0966","2011-10-14",null,null,"2011-10-25",1,false,false,56,null,1,2,false,null,null,false,false,false,false,false,false,false,false,false,false,false,false,false,null,null,1]
[242,"HNO-01-0966","2011-10-25",3,null,"2011-11-25",null,false,false,56,null,1,2,false,null,null,false,false,false,false,false,false,false,false,false,false,false,false,false,null,"2011-10-14",1]
[243,"HNO-01-0966","2012-08-01",3,null,"2012-08-08",null,true,false,58,null,1,3,false,null,null,false,false,false,false,false,false,false,false,false,false,false,false,false,null,"2011-10-25",1]
[244,"HNO-01-0966","2012-08-08",3,null,"2012-08-15",1,true,false,58,null,1,3,false,null,null,false,false,false,false,false,false,false,false,false,false,false,false,false,null,"2012-08-01",1]
[245,"HNO-01-0966","2012-08-15",1,null,"2012-08-23",1,true,false,58,null,1,3,false,null,null,false,false,false,false,false,false,false,false,false,false,false,false,false,null,"2012-08-08",1]
[246,"HNO-01-0966","2012-08-23",2,null,"2012-08-30",1,true,false,56.5,null,1,3,false,null,null,false,false,false,false,false,false,false,false,false,false,false,false,false,null,"2012-08-15",1]
[247,"HNO-01-0966","2012-08-28",2,null,"2013-06-09",1,true,false,58,null,1,3,false,null,null,false,false,false,false,false,false,false,false,false,false,false,false,false,null,"2012-08-23",1]
[248,"HNO-01-0966","2012-09-06",1,null,"2012-09-14",1,true,false,58,null,1,3,false,null,null,false,false,false,false,false,false,false,false,false,false,false,false,false,null,"2012-08-28",1]
[249,"HNO-01-0966","2012-09-14",1,null,"2012-09-27",1,true,false,58,null,1,3,false,null,null,false,false,false,false,false,false,false,false,false,false,false,false,false,null,"2012-09-06",1]
[250,"HNO-01-0966","2012-09-27",1,null,"2012-10-11",1,true,false,58,null,1,3,false,null,null,false,false,false,false,false,false,false,false,false,false,false,false,false,null,"2012-09-14",1]
[251,"HNO-01-0966","2012-10-09",2,null,"2012-11-09",1,true,false,58,null,1,3,false,null,null,false,false,false,false,false,false,false,false,false,false,false,false,false,null,"2012-09-27",0]

{"sheet":"cls","index":17,"n_rows":87,"n_cols":9,"rows_kept":87,"cut":false,"hidden":true,"merged":[]}
["id","idVisit","idClient","date1","date2","codeCLS","otherCLS","result1","result2"]
[1,2,"HNO-01-0295","2009-12-08",null,1,null,null,349]
[2,2,"HNO-01-0295","2010-08-18",null,1,null,null,287]
[3,2,"HNO-01-0295","2011-01-04",null,1,null,null,293]
[4,2,"HNO-01-0295","2011-07-19",null,1,null,null,235]
[5,2,"HNO-01-0295","2012-04-12",null,1,null,null,518]
[6,2,"HNO-01-0295","2012-10-25",null,1,null,null,265]
[7,2,"HNO-01-0295","2013-11-23",null,1,null,null,513]
[8,2,"HNO-01-0295","2011-09-19",null,10,null,1]
[9,2,"HNO-01-0295","2011-09-19",null,13,null,1]
[10,102,"HNO-01-0435","2009-12-03",null,1,null,null,30]
[11,102,"HNO-01-0435","2009-10-06",null,1,null,null,117]
[12,102,"HNO-01-0435","2010-04-20",null,1,null,null,222]
[13,102,"HNO-01-0435","2010-10-05",null,1,null,null,361]
[14,102,"HNO-01-0435","2011-04-19",null,1,null,null,494]
[15,102,"HNO-01-0435","2011-10-04",null,1,null,null,349]
[16,102,"HNO-01-0435","2012-02-22",null,1,null,null,456]
[17,102,"HNO-01-0435","2012-04-17",null,1,null,null,569]
[18,102,"HNO-01-0435","2012-10-04",null,1,null,null,441]
[19,102,"HNO-01-0435","2013-04-04",null,1,null,null,354]
[20,102,"HNO-01-0435","2013-11-14",null,1,null,null,411]
[21,167,"HNO-01-0609","2009-09-25",null,1,null,null,55]
[22,167,"HNO-01-0609","2010-05-17",null,1,null,null,88]
[23,167,"HNO-01-0609","2010-11-12",null,1,null,null,218]
[24,167,"HNO-01-0609","2011-07-15",null,1,null,null,305]
[25,167,"HNO-01-0609","2011-11-11",null,1,null,null,277]
[26,167,"HNO-01-0609","2012-05-25",null,1,null,null,415]
[27,167,"HNO-01-0609","2013-01-07",null,1,null,null,306]
[28,167,"HNO-01-0609","2013-04-13",null,1,null,null,356]
[29,168,"HNO-01-0625","2009-10-13",null,1,null,null,648]
[30,169,"HNO-01-0625","2011-04-19",null,1,null,null,359]
[31,170,"HNO-01-0625","2011-08-10",null,1,null,null,384]
[32,171,"HNO-01-0625","2012-02-22",null,1,null,null,310]
[33,186,"HNO-01-0625","2012-10-18",null,1,null,null,523]
[34,192,"HNO-01-0625","2013-04-04",null,1,null,null,480]
[35,199,"HNO-01-0625","2013-11-14",null,1,null,null,480]
[36,1,"HNO-01-0964","2011-10-14",null,3,null,3,2.6]
[37,2,"HNO-01-0964","2011-10-21",null,1,null,3,8]
[38,9,"HNO-01-965","26/10/2011",null,1,null,null,36]
[39,9,"HNO-01-965","26/10/2011",null,3,null,3]
[40,9,"HNO-01-965","26/10/2011",null,4,null,4]
[41,9,"HNO-01-965","26/10/2011",null,7,null,1]
[42,9,"HNO-01-965","26/10/2011",null,6,null,1]
[43,15,"HNO-01-0965","2012-12-01",null,3]
[44,15,"HNO-01-0965","2012-12-01",null,4]
[45,17,"HNO-01-0965","2011-02-02",null,4]
[46,17,"HNO-01-0965","2011-02-02",null,3]
[47,24,"HNO-01-0965","27/9/2012",null,1,null,3,76]
[48,25,"HNO-01-0965","23/10/2012",null,3]
[49,25,"HNO-01-0965","23/10/2012",null,4]
[50,26,"HNO-01-0965","14/12/2012",null,1,null,3,117]
[51,26,"HNO-01-0965","14/12/2012",null,3,null,3,127]
[52,26,"HNO-01-0965","14/12/2012",null,4,null,3,37]
[53,30,"HNO-01-0965","2013-04-04",null,7,null,3,88]
[54,30,"HNO-01-0965","2013-04-04",null,4,null,3,73]
[55,30,"HNO-01-0965","2013-04-04",null,3,null,3,135]
[56,31,"HNO-01-0965","2013-04-04",null,1,null,3,128]
[57,31,"HNO-01-0965","2013-05-02",null,7,null,3,78]
[58,31,"HNO-01-0965","2013-05-02",null,3,null,null,150]
[59,31,"HNO-01-0965","2013-05-02",null,4,null,null,69]
[60,31,"HNO-01-0965","2013-05-02",null,5,null,null,78]
[61,33,"HNO-01-0965","2013-06-27",null,1,null,3,73]
[62,33,"HNO-01-0965","2013-06-27",null,3,null,null,160]
[63,33,"HNO-01-0965","2013-06-27",null,4,null,null,59]
[64,33,"HNO-01-0965","2013-06-27",null,5,null,null,68]
[65,33,"HNO-01-0965","2013-06-27",null,7,null,null,72]
[66,38,"HNO-01-0965","2013-11-14",null,1,null,null,57]
[67,38,"HNO-01-0965","2013-11-14",null,4,null,null,91]
[68,38,"HNO-01-0965","2013-11-14",null,5,null,null,93.8]
[69,38,"HNO-01-0965","2013-11-14",null,3,null,null,149]
[70,41,"HNO-01-966","2011-10-14",null,1,null,null,12]
[71,41,"HNO-01-966","2011-10-14",null,3,null,null,147]
[72,41,"HNO-01-966","2011-10-14",null,4,null,null,188]
[73,41,"HNO-01-966","2011-10-14",null,12,"HBs Ag",1]
[74,41,"HNO-01-966","2011-10-14",null,12,"HCV",2]
[75,41,"HNO-01-966","2011-10-14",null,13,null,1]
[76,41,"HNO-01-966","2011-10-14",null,12,"XQuang Tim",1]
[77,41,"HNO-01-966","2011-10-14",null,10,null,1]
[78,43,"HNO-01-0966","2012-07-30",null,1,null,null,7]
[79,43,"HNO-01-0966","2012-08-01",null,10,null,1]
[80,43,"HNO-01-0966","2012-08-01",null,13,null,1]
[81,43,"HNO-01-0966","2012-08-01",null,12,"HBs Ag",1]
[82,43,"HNO-01-0966","2012-08-01",null,12,"HCV",2]
[83,44,"HNO-01-0966","2012-08-08",null,1,null,null,7]
[84,44,"HNO-01-0966","2012-08-08",null,3,null,null,129]
[85,44,"HNO-01-0966","2012-08-08",null,4,null,null,42]
[86,44,"HNO-01-0966","2012-08-08",null,7,null,null,78]

{"sheet":"treatment","index":18,"n_rows":20,"n_cols":11,"rows_kept":20,"cut":false,"hidden":false,"merged":[]}
["id","idVisit","idClient","codeTreatment","otherTreatment","codePhacdo","otherPhacdo","date1","date2","codeReason","otherReason"]
[1,6,"HNO-01-0295",1,null,2,null,"2011-10-06"]
[2,30,"HNO-01-0295",1,null,2,null,"2013-10-24"]
[3,37,"HNO-01-0435",1,null,4,null,"2009-04-21"]
[4,90,"HNO-01-0435",1,null,2,null,"2012-07-05","2013-01-22",6,"Chuyen PK Binh Thanh"]
[5,91,"HNO-01-0435",1,null,2,null,"2013-03-08",null,null,"Chuyển PK Bình Thạnh"]
[6,106,"HNO-01-0609",1,null,5,null,"2009-11-03"]
[7,157,"HNO-01-0609",1,null,5,null,"2009-11-03","2013-05-02",6,"Không có lý do"]
[8,157,"HNO-01-0609",1,null,7,null,"2013-05-02"]
[9,189,"HNO-01-0625",1,null,2,null,"2012-04-26","2013-01-10",6,"chuyển đi PKNT Bình Thạnh"]
[10,190,"HNO-01-0625",1,null,2,null,"2013-03-08"]
[11,4,"HNO-01-0964",1,null,5,null,"2011-11-04"]
[12,11,"HNO-01-0965",4,null,null,null,"17/11/2011"]
[13,12,"HNO-01-0965",1,null,5,null,"22/12/2011"]
[14,43,"HNO-01-0966",4,null,null,null,"2012-08-01"]
[15,43,"HNO-01-0966",4,null,null,null,"2012-08-01"]
[16,44,"HNO-01-0966",4,null,null,null,"2012-08-01"]
[17,44,"HNO-01-0966",4,null,null,null,"2012-08-01"]
[18,45,"HNO-01-0966",1,null,5,null,"2012-08-15"]
[19,48,"HNO-01-0966",1,null,7,null,"2012-09-06"]

{"sheet":"referal","index":19,"n_rows":5,"n_cols":12,"rows_kept":5,"cut":false,"hidden":true,"merged":[]}
["id","idVisit","idclient","codeRef","refOther","date1","date2","placeType","province","name","get","note"]
[1,26,"HNO-01-0295",4,null,"#########",null,"Phòng khám ngoại trú","Hà Nội","BVĐK Hà Đông",false]
[2,11,"HNO-01-0965",2,null,"22/12/2011","22/12/2011","Bệnh viện/phòng khám công","Sơn La","Bệnh viện Lao phổi",true]
[3,23,"HNO-01-0965",5,"Về quê","28/6/2012","28/6/2012","Phòng khám ngoại trú","Sơn La","PKNT BVĐK Sơn La",true]
[4,42,"HNO-01-0966",5,"Điều trị ARV","2011-10-25","2011-10-25","Phòng khám ngoại trú","Lâm Đồng","PKNT Lâm Đồng",true]

{"sheet":"patient","index":20,"n_rows":9,"n_cols":36,"rows_kept":9,"cut":false,"hidden":true,"merged":[]}
["id","Họ tên","giới tính","Năm sinh","CMND","Điện thoại","Đường phố","Xã phường","quận huyện","tỉnh thành phố","tên hỗ trợ","quan hệ","điện thoại","Đường phố","Xã phường","quận huyện","tỉnh thành phố","giới thiệu","giới thiệu khác","ngày","tỉnh thành phố","tên nơi giới thiệu","Khẳng định HIV","Đăng ký chăm sóc tại PKNT","Chuyển đến PKNT","Đủ tiêu chuẩn lâm sàng & xét nghiệm","Sẵn sàng tuân thủ điều trị","Được xét chọn","Bắt đầu điều trị ARV","Bắt đầu nhận thuốc ARV","Chuyển đi khỏi PKNT","Tử vong","Mất dấu","điều trị lại","ngừng điều trị","mã số cũ"]
["HNO-01-0295","Vũ Thị Hồng Nh",1,1986,1,900000001,"Số 01","Xã A","Lâm Bình","Tuyên Quang",null,null,null,null,null,null,null,1,null,null,null,null,"2008-09-09","30/10/2008",null,"19/07/2011","27/09/2011","29/09/2011","2011-06-10","2011-06-10"]
["HNO-01-0435","Trần Chí B",1,1979,2,900000002,"Long Bien","Long Bien","Long Biên","Hà Nội",null,null,null,null,null,null,null,1,null,null,null,null,"31/12/2008","2009-04-03",null,"13/04/2009","13/04/2009","16/04/2009","21/4/2009","21/04/2009"]
["HNO-01-0609","Cao Văn Hưng",0,1979,3,900000003,"Hoàng Mai","Hoàng Mai","Hoàng Mai","Hà Nội",null,null,null,null,null,null,null,1,null,null,null,null,"2009-09-24","2009-09-28",null,"2009-09-28","2009-11-03","2009-11-03","2009-11-03","2009-11-03"]
["HNO-01-0620","Nguyễn Thị L",1,1982,4,4,"Thanh Trì","Thanh Trì","Hoàng Mai","Hà Nội",null,null,null,null,null,null,null,1,null,null,null,null,"2009-06-17","2009-07-10",null,"28/10/2009","2009-06-11","2009-06-11","2009-06-11","2009-06-11"]
["HNO-01-0625","Hà Thu G",1,1986,5,5,"Bồ Đề","Long Biên","Long Biên","Hà Nội",null,null,null,null,null,null,null,1,null,null,null,null,"30/12/2008","13/10/2009",null,"16/04/2012","15/04/2012","24/05/2012","26/04/2012","26/04/2012"]
["HNO-01-0964","Bùi Thị A",1,1986,16,900000016,"Tổ 16","Mai Động","Hoàng Mai","Hà Nội",null,null,null,null,null,null,null,4,null,"21/10/2011","Hà Nội","Bệnh viện nhiệt đới TW","2011-04-10","14/10/2011",null,"21/10/2011","30/11/2011","2011-12-12","2011-04-11","2011-04-11"]
["HNO-01-0965","Trần Công B",0,1982,17,900000017,"Mường Lưa","Mường Lầm","Sông Mã","Sơn La",null,null,null,null,null,null,null,2,null,"2012-12-09","Sơn La","PKNT số 6 BVDK sông Mã","14/10/2011","2011-04-10","2012-12-09",null,"30/11/2011","2011-12-12","21/12/2011","21/12/2011",null,null,null,null,null,"SLA0600226"]
["HNO-01-0966","Đỗ Xuân C",0,1981,18,900000018,"Tổ 18","Hoàng Liệt","Hoàng Mai","Hà Nội",null,null,null,null,null,null,null,1,null,null,null,null,"2011-12-10","14/10/2011",null,"19/10/2011","15/08/2012","19/09/2012","15/08/2012","15/08/2012"]

{"sheet":"eventList","index":21,"n_rows":1,"n_cols":4,"rows_kept":1,"cut":false,"hidden":true,"merged":[]}
["id","clientID","codeEvent","date"]

{"sheet":"Sample","index":22,"n_rows":14,"n_cols":7,"rows_kept":14,"cut":false,"hidden":true,"merged":[[3,2,3,3],[3,4,3,5],[3,1,4,1],[3,0,4,0],[3,6,4,6]]}
[]
[]
[]
["#","Indicator","Male",null,"Female",null,"Total"]
[null,null,"< 15","15+","< 15","15+"]
[1.1000000000000001,"Number of adults and children who visited OPC",null,null,null,null,{"$f":"SUM(C6:F6)","v":0}]
[1.2,"Number of HIV-positive patients who were screened for TB in HIV care or treatment setting",null,null,null,null,{"$f":"SUM(C7:F7)","v":0}]
[1.3,"Percent of of HIV-positive patients who were screened for TB in HIV care or treatment setting",{"$f":"IF(ISERROR(C7/C6*100), \"-\", C6/C7*100)","v":"-"},{"$f":"IF(ISERROR(D7/D6*100), \"-\", D6/D7*100)","v":"-"},{"$f":"IF(ISERROR(E7/E6*100), \"-\", E6/E7*100)","v":"-"},{"$f":"IF(ISERROR(F7/F6*100), \"-\", F6/F7*100)","v":"-"},{"$f":"IF(ISERROR(G7/G6*100), \"-\", G6/G7*100)","v":"-"}]
[2.1,"Number of adults and children who are still alive and on treatment at 12 months after initiating ART",null,null,null,null,{"$f":"SUM(C9:F9)","v":0}]
[2.2000000000000002,"Number of adults and children who initiated ART in the 12 months prior to the beginning of the reporting period, including those who have died, those who have stopped ART, and those lost to follow-up",null,null,null,null,{"$f":"SUM(C10:F10)","v":0}]
[2.2999999999999998,"Percent of adults and children who are still alive and on treatment at 12 months after initiating ART",{"$f":"IF(ISERROR(C9/C10*100), \"-\", C9/C10*100)","v":"-"},{"$f":"IF(ISERROR(D9/D10*100), \"-\", D9/D10*100)","v":"-"},{"$f":"IF(ISERROR(E9/E10*100), \"-\", E9/E10*100)","v":"-"},{"$f":"IF(ISERROR(F9/F10*100), \"-\", F9/F10*100)","v":"-"},{"$f":"IF(ISERROR(G9/G10*100), \"-\", G9/G10*100)","v":"-"}]
[3.1,"Số người bệnh mới đăng ký điều trị trong 6 tháng qua được làm xét nghiệm CD4 tại phòng khám trong vòng 15 ngày sau ngày đăng ký",null,null,null,null,{"$f":"SUM(C12:F12)","v":0}]
[3.2,"Số người bệnh mới đăng ký điều trị trong 6 tháng qua không tính trường hợp người bệnh mới chuyển đến đã làm xét nghiệm CD4 ở nơi khác",null,null,null,null,{"$f":"SUM(C13:F13)","v":0}]
[3.3,"Tỷ lệ người bệnh mới đăng ký điều trị trong 6 tháng qua được làm xét nghiệm CD4 lần đầu trong vòng 15 ngày",{"$f":"IF(ISERROR(C13/C12*100), \"-\", C12/C13*100)","v":"-"},{"$f":"IF(ISERROR(D13/D12*100), \"-\", D12/D13*100)","v":"-"},{"$f":"IF(ISERROR(E13/E12*100), \"-\", E12/E13*100)","v":"-"},{"$f":"IF(ISERROR(F13/F12*100), \"-\", F12/F13*100)","v":"-"},{"$f":"IF(ISERROR(G13/G12*100), \"-\", G12/G13*100)","v":"-"}]